Workbook

Sheet Riskk (hidden)
A1: linda | B1: UPSW | H1: =COUNT(H3:H20) -> 0 | I1: FALSE
B2: Userid | H2: Main/sub | I2: Caption | J2: On Action | K2: NewGroup
A3: 3 | B3: UserLevel
A4: 2006-05-09T11:19:39 | B4: LoginTime
B5: LogoutTime

Sheet Login
B2: Riskk | H2: Box 389, Lot 7.16, Wisma Central, Jln Ampang, 50450 Kuala Lumpur
B3: Sdn Bhd (CN 388306K)
B9: SC REPORT
J18: `

Sheet Main (hidden)
A1: Riskk | D1: Box 389, Lot 7.16, Wisma Central, Jln Ampang, 50450 Kuala Lumpur
A2: Sdn Bhd (CN 388306K)
B5: Report Detail | J5: Sheet | K5: Print
B6: Company : | C6: Permodalan BSN Berhad | J6: UTFMain | K6: YES
B7: Fund : | C7: ASBSN | J7: UTFList | K7: YES
B8: Fund Name : | C8: =VLOOKUP(FundCode,InFund!$A:$D,2,0) -> Amanah Saham BSN | J8: UTF1 | K8: YES
B9: Fund Prefix : | C9: =VLOOKUP(FundCode,InFund!$A:$G,7,0) -> ASBSN | J9: UTF2A | K9: YES
B10: Inception Date : | C10: =VLOOKUP(FundCode,InFund!$A:$D,3,0) -> 1994-12-31 | J10: UTF2B | K10: YES
B11: Start Of Year : | C11: =EOMONTH(EOM,-MONTH(EOM))+1 -> 2013-01-01 | J11: UTF2C | K11: YES
B12: End of Last Month : | C12: =EOMONTH(C13,-1) -> 2013-03-31 | J12: UTF2D | K12: YES
B13: Report As At : | C13: 2013-04-30 | J13: UTF2E | K13: YES
B14: Index Bench Mark : | C14: =VLOOKUP(FundCode,InFund!$A:$E,5,0) -> GIS60GIM | J14: UTF2F | K14: YES
B15: Fund Currency : | C15: =VLOOKUP(FundCode,InFund!$A:$F,6,0) -> MYR | J15: UTF2G | K15: YES
B16: Financial Yr Start : | C16: =VLOOKUP(FundCode,InFund!$A:$C,3,0) -> 1994-12-31 | J16: UTF2H | K16: YES
J17: UTF3A | K17: YES
B18: Current Date : | C18: =TEXT(NOW(),"DD-MMM-YY") -> 04-Jul-14 | J18: UTF3B | K18: YES
B19: Current Time : | C19: =TEXT(NOW(),"HH:MM:SS") -> 11:29:46 | J19: UTF3C | K19: YES
B20: Company ID: | C20: PB | J20: UTF3D | K20: YES
B21: Current User : | J21: UTF4A | K21: YES
J22: UTF5 | K22: YES
J23: UTF6 | K23: YES
J24: UTF7 | K24: YES

Sheet UTFMain (hidden)
D2: UTF COMPLIANCE RETURNS
D3: DECLARATION/VERIFICATION FORM
D4: ="For the Month Ended " & TEXT(EOM,"MMM yyyy") -> For the Month Ended Apr 2013
A5: =EDATE(EOM,0) -> 2013-04-30
D7: Management Company | F7: =": " &CompanyName -> : Permodalan BSN Berhad
D8: Trustee | F8: =": " & VLOOKUP(FundCode,InFund!$A:$H,8,0) -> : AMANAHRAYA TRUSTEES BERHAD
D9: Fund | F9: =": " &FundName -> : Amanah Saham BSN
C11: 2007-06-12 | D11: Management company Declaration | G11: Trustee Declaration
D13: 1. The attached Compliance Returns are complete, true and accurate | G13: 1. The attached Compliance Returns are complete, true and accurate
D14: to the best of my knowledge and belief. | G14: to the best of my knowledge and belief.
D16: Signature : | G16: Signature :
D19: Name : | G19: Name :
D21: Designation : | G21: Designation :
D23: IC/Passport no : | G23: IC/Passport no :
D25: Date : | G25: Date :
D28: Declaration of the Designated Person responsible for all compliance matters
D29: 1. The attached Compliance Returns are complete, true and accurate to the best of my knowledge and belief.
D32: Signature : | G32: Name :
D34: IC/Passport no : | G34: Designation :
D36: Date :

Sheet UTFList (hidden)
D2: UTF COMPLIANCE RETURNS
D3: CHCEKLIST
D4: ="For the Month Ended " & TEXT(EOM,"MMM yyyy") -> For the Month Ended Apr 2013
A6: =EDATE(EOM,0) -> 2013-04-30
D8: Management Company | F8: =": " &CompanyName -> : Permodalan BSN Berhad
D9: Fund | F9: =": " &FundName -> : Amanah Saham BSN
C11: 2007-06-12
D13: UTF Compliance 1 | F13: Manager's Box | H13: Y
D14: UTF Compliance 2A | F14: Investments in Ordinary Shares of a Single Issuer | H14: Y
D15: UTF Compliance 2B | F15: Investments in Transferable Securities And Money Market Instruments of a Single Issuer | H15: Y
D16: UTF Compliance 2C | F16: Placements of Deposits with a Single Institution | H16: Y
D17: UTF Compliance 2D | F17: Investments in OTC Derivative of a Single Counter-Party
D18: UTF Compliance 2E | F18: Investment in Structured Product of a Single Counter-Party
D19: UTF Compliance 2F | F19: Aggregate Investments of a Single Issuer/Institution | H19: Y
D20: UTF Compliance 2G | F20: Investments in Units/Shares of a Single Collective Investment Scheme
D21: UTF Compliance 2H | F21: Investments in Transferable Securities And Money Market Instruments of a Group of Companies | H21: Y
D22: UTF Compliance 3A | F22: Concentration of Investment in Equities/Warrants of a Single Issuer | H22: Y
D23: UTF Compliance 3B | F23: Concentration of Investment in Debentures of a Single Issuer | H23: Y
D24: UTF Compliance 3C | F24: Concentration of Investment in Money Market Instruments of a Single Issuer
D25: UTF Compliance 3D | F25: Concentration of Investment in Collective Investment Scheme of a Single Issuer
D26: UTF Compliance 4A | F26: Investment in Unlisted Securities
D27: UTF Compliance 5 | F27: Investments in Permitted Investments of a Money Market Fund
D28: UTF Compliance 6 | F28: Holding of Permitted Investments for a Capital Protected Fund
D29: UTF Compliance 7 | F29: Use of Brokers/Dealers

Sheet UTF1 (hidden)
J1: UTF COMPLIANCE 1
D2: UTF COMPLIANCE RETURNS
D4: MANAGER'S BOX
A6: =EDATE(EOM,0) -> 2013-04-30
D8: Management Company | G8: =": " &CompanyName -> : Permodalan BSN Berhad
D9: Name of Fund (Category/Type) | G9: =": " &FundName -> : Amanah Saham BSN
D10: Month Ended | G10: =": " & TEXT(EOM, "dd mmm yyyy") -> : 30 Apr 2013
C11: 2007-06-12 | D11: Approved Fund Size (' 000 units) | G11: =": " -> :
D12: Manager's Box ('000 units) | G12: Units in circulation ('000 units) | J12: Units held by Manager over
D13: EPF | E13: Matched Sales | F13: Unit held by Manager | G13: Total Manager's box | H13: Others | I13: Total | J13: Units in circulation (%)
D14: 0 | E14: 0 | F14: 0 | G14: 0 | H14: =SUMIF(InPricing!A:A,EOM,InPricing!F:F) -> 280800000 | I14: =H14 -> 280800000 | J14: 0

Sheet UTF2A (hidden)
F1: UTF COMPLIANCE 2A
D2: UTF COMPLIANCEL RETURNS
D4: =UPPER("Investments in Ordinary Shares of a Single Issuer Top 5") -> INVESTMENTS IN ORDINARY SHARES OF A SINGLE ISSUER TOP 5
A6: =EDATE(EOM,0) -> 2013-04-30
D8: Management Company | E8: =": " & CompanyName -> : Permodalan BSN Berhad
D9: Name of Fund (Category/Type) | E9: =": " & FundName -> : Amanah Saham BSN
D10: Month Ended | E10: =": " & TEXT(EOM,"dd mmm yyyy") -> : 30 Apr 2013
C11: 2007-06-12 | D11: Fund NAV (RM) | E11: =": " & InPortfolio!AM2 -> : 100528690.32
D12: Name of Issuer | E12: Value of Fund's Investments | F12: Value of holding over NAV | I12: qAssetClass | J12: EQT
E13: (RM '000) | F13: (%)
D14: =IF(I16="","",I16) -> Tenaga Nasional Berhad | E14: =IF(J16="","",J16/1000) -> 8197.755 | F14: =IF(K16="","",K16) -> 8.154642196 | J14: Values
D15: =IF(I17="","",I17) -> Petronas Chemical Group Bhd | E15: =IF(J17="","",J17/1000) -> 6998.201 | F15: =IF(K17="","",K17) -> 6.961396769 | I15: Row Labels | J15: Sum of MarketValueFC | K15: Sum of fPercNAV
D16: =IF(I18="","",I18) -> MISC BHD | E16: =IF(J18="","",J18/1000) -> 4781.176 | F16: =IF(K18="","",K18) -> 4.756031323 | I16: Tenaga Nasional Berhad | J16: 8197755 | K16: 8.154642196
D17: =IF(I19="","",I19) -> Telekom Malaysia Berhad | E17: =IF(J19="","",J19/1000) -> 5244 | F17: =IF(K19="","",K19) -> 5.216421286 | I17: Petronas Chemical Group Bhd | J17: 6998201 | K17: 6.961396769
D18: =IF(I20="","",I20) -> CIMB Holdings Berhad | E18: =IF(J20="","",J20/1000) -> 5572.8 | F18: =IF(K20="","",K20) -> 5.543492094 | I18: MISC BHD | J18: 4781176 | K18: 4.756031323
I19: Telekom Malaysia Berhad | J19: 5244000 | K19: 5.216421286
I20: CIMB Holdings Berhad | J20: 5572800 | K20: 5.543492094

Sheet UTF2B (hidden)
I1: UTF COMPLIANCE 2B
D2: UTF STATISTICAL RETURNS
D4: =UPPER("Investments in Transferable Securities And Money Market Instruments of a Single Issuer") -> INVESTMENTS IN TRANSFERABLE SECURITIES AND MONEY MARKET INSTRUMENTS OF A SINGLE ISSUER
D5: TOP 5
A6: =EDATE(EOM,0) -> 2013-04-30
D8: Management Company | E8: =": " &CompanyName -> : Permodalan BSN Berhad
D9: Name of Fund (Category/Type) | E9: =": " &CompanyName -> : Permodalan BSN Berhad
D10: Month Ended | E10: =": " & TEXT(EOM, "dd mmm yyyy") -> : 30 Apr 2013 | L10: Term | M10: (blank)
C11: 2007-06-12 | D11: Fund NAV (RM) | E11: =": " & InPortfolio!AM2 -> : 100528690.32 | L11: qAssetClass | M11: (Multiple Items)
D12: Name of Issuer/ Institution | E12: Class of Security | F12: Type of Investment | G12: Rating | H12: Value of fund's Investments | I12: Value of holding over NAV
H13: (RM'000) | I13: (%) | P13: Values
D14: =IF(L15="","",L15) -> Tenaga Nasional Berhad | E14: =IF(M15="","",M15) -> Equity | F14: =IF(N15="","",N15) -> Ordinary | G14: =IF(O15="","",O15) -> N/A | H14: =IF(P15="","",P15/1000) -> 8197.755 | I14: =IF(Q15="","",Q15) -> 8.154642196 | L14: Row Labels | M14: Class | N14: StockTypeDesc | O14: Rating | P14: Sum of MarketValueFC | Q14: Sum of fPercNAV
D15: =IF(L16="","",L16) -> Tenaga Nasional Berhad Total | E15: =IF(M16="","",M16) ->  | F15: =IF(N16="","",N16) ->  | G15: =IF(O16="","",O16) ->  | H15: =IF(P16="","",P16/1000) -> 8197.755 | I15: =IF(Q16="","",Q16) -> 8.154642196 | L15: Tenaga Nasional Berhad | M15: Equity | N15: Ordinary | O15: N/A | P15: 8197755 | Q15: 8.154642196
D16: Petronas Chemical Group Bhd | E16: Equity | F16: Ordinary | G16: N/A | H16: 6998.201 | I16: 6.961396769 | L16: Tenaga Nasional Berhad Total | P16: 8197755 | Q16: 8.154642196
D17: Petronas Chemical Group Bhd Total | H17: 6998.201 | I17: 6.961396769 | L17: Petronas Chemical Group Bhd | M17: Equity | N17: Ordinary | O17: N/A | P17: 6998201 | Q17: 6.961396769
D18: CIMB Holdings Berhad | E18: Equity | F18: Ordinary | G18: N/A | H18: 5572.8 | I18: 5.543492094 | L18: Petronas Chemical Group Bhd Total | P18: 6998201 | Q18: 6.961396769
D19: CIMB Holdings Berhad Total | H19: 5572.8 | I19: 5.543492094 | L19: CIMB Holdings Berhad | M19: Equity | N19: Ordinary | O19: N/A | P19: 5572800 | Q19: 5.543492094
D20: Telekom Malaysia Berhad | E20: Equity | F20: Ordinary | G20: N/A | H20: 5244 | I20: 5.216421286 | L20: CIMB Holdings Berhad Total | P20: 5572800 | Q20: 5.543492094
D21: Telekom Malaysia Berhad Total | H21: 5244 | I21: 5.216421286 | L21: Telekom Malaysia Berhad | M21: Equity | N21: Ordinary | O21: N/A | P21: 5244000 | Q21: 5.216421286
D22: MISC BHD | E22: Equity | F22: Ordinary | G22: N/A | H22: 4781.176 | I22: 4.756031323 | L22: Telekom Malaysia Berhad Total | P22: 5244000 | Q22: 5.216421286
D23: MISC BHD Total | H23: 4781.176 | I23: 4.756031323 | L23: MISC BHD | M23: Equity | N23: Ordinary | O23: N/A | P23: 4781176 | Q23: 4.756031323
L24: MISC BHD Total | P24: 4781176 | Q24: 4.756031323
D79: =IF(L80="","",L80) ->  | E79: =IF(M80="","",M80) ->  | F79: =IF(N80="","",N80) ->  | G79: =IF(O80="","",O80) ->  | H79: =IF(P80="","",P80/1000) ->  | I79: =IF(Q80="","",Q80) -> 

Sheet UTF2C (hidden)
F1: UTF COMPLIANCE 2C
D2: UTF COMPLIANCEL RETURNS
D4: =UPPER("Placements of Deposits with a Single Institution") -> PLACEMENTS OF DEPOSITS WITH A SINGLE INSTITUTION
D5: TOP 5
A6: =EDATE(EOM,0) -> 2013-04-30
D8: Management Company | E8: =": " & CompanyName -> : Permodalan BSN Berhad
D9: Name of Fund (Category/Type) | E9: =": " & FundName -> : Amanah Saham BSN
D10: Month Ended | E10: =": " & TEXT(EOM,"dd mmm yyyy") -> : 30 Apr 2013
C11: 2007-06-12 | D11: Fund NAV (RM) | E11: =": " & InPortfolio!AM2 -> : 100528690.32 | J11: qAssetClass | K11: CSH
D12: Name of Institution | E12: Value of Fund's Investments | F12: Value of holding over NAV
E13: (RM '000) | F13: (%) | K13: Values
D14: =IF(J15="","",J15) -> KAF INV BANK | E14: =IF(K15="","",K15/1000) -> 2874 | F14: =IF(L15="","",L15) -> 2.8588 | J14: Row Labels | K14: Sum of UnitFaceValue | L14: Sum of fPercNAV
D15: =IF(J16="","",J16) -> Bank Rakyat Berhad | E15: =IF(K16="","",K16/1000) -> 1254 | F15: =IF(L16="","",L16) -> 1.2472 | J15: KAF INV BANK | K15: 2874000 | L15: 2.8588
D16: =IF(J17="","",J17) -> RHB Inv Bank | E16: =IF(K17="","",K17/1000) -> 534 | F16: =IF(L17="","",L17) -> 0.5311 | J16: Bank Rakyat Berhad | K16: 1254000 | L16: 1.2472
D17: =IF(J18="","",J18) ->  | E17: =IF(K18="","",K18/1000) ->  | F17: =IF(L18="","",L18) ->  | J17: RHB Inv Bank | K17: 534000 | L17: 0.5311
D18: =IF(J19="","",J19) ->  | E18: =IF(K19="","",K19/1000) ->  | F18: =IF(L19="","",L19) -> 

Sheet UTF2D (hidden)
G1: UTF COMPLIANCE 2D
D2: UTF COMPLIANCEL RETURNS
D4: =UPPER("Investments in OTC Derivative of a Single Counter-Party") -> INVESTMENTS IN OTC DERIVATIVE OF A SINGLE COUNTER-PARTY
D5: TOP 5
A6: =EDATE(EOM,0) -> 2013-04-30
D8: Management Company | F8: =": " & CompanyName -> : Permodalan BSN Berhad
D9: Name of Fund (Category/Type) | F9: =": " & FundName -> : Amanah Saham BSN
D10: Month Ended | F10: =": " & TEXT(EOM,"dd mmm yyyy") -> : 30 Apr 2013
C11: 2007-06-12 | D11: Fund NAV | F11: =": " & InPortfolio!AM2 -> : 100528690.32 | K11: qAssetClass | L11: (Multiple Items)
D12: Name of Issuer | E12: Type of Investment | F12: Value of Fund's Investments | G12: Value of holding over NAV
F13: (RM '000) | G13: (%) | M13: Values
D14: =IF(K15="","",K15) ->  | F14: =IF(M15="","",M15/1000) ->  | G14: =IF(N15="","",N15) ->  | K14: Row Labels | L14: StockTypeDesc | M14: Sum of MarketValueFC | N14: Sum of fPercNAV
F15: =IF(M16="","",M16/1000) ->  | G15: =IF(N16="","",N16) -> 
F16: =IF(M17="","",M17/1000) ->  | G16: =IF(N17="","",N17) -> 
F17: =IF(M18="","",M18/1000) ->  | G17: =IF(N18="","",N18) -> 
F18: =IF(M19="","",M19/1000) ->  | G18: =IF(N19="","",N19) -> 

Sheet InPortfolio (hidden)
A1: Class | B1: qFundCode | C1: qStockCode | D1: UnitFaceValue | E1: MarketValueSC | F1: MarketValueFC | G1: ExchangeRate | H1: MaturityDateCSH | I1: CostFC | J1: CostSC | K1: AccruedInterestFC | L1: AccruedInterestSC | M1: UnrealisedGainsStock | N1: UnrealisedGainsExchg | O1: PriceCurr | P1: FundName | Q1: FundCurrency | R1: MaxTenor | S1: qCompanyID | T1: StockName | U1: StockCurrency | V1: qAssetClass | W1: SectorName | X1: CurrencyName | Y1: Exchange | Z1: IslamicFlag | AA1: IssuerName | AB1: IssuerGrpName | AC1: qStockType | AD1: Board | AE1: qBondType | AF1: BndDesc | AG1: StockTypeDesc | AH1: qManagerCode | AI1: qCountryID | AJ1: FreezeUnit | AK1: FundDesc | AL1: RatingUsed | AM1: NAV | AN1: ExchgName | AO1: qCshType | AP1: CshTypeDesc | AQ1: UTFlag | AR1: qKLSESector | AS1: ValuationMethod | AT1: qRptSequence | AU1: fPercNAV | AV1: PurchaseYTM | AW1: PurchaseDate | AX1: MarketValueDate | AY1: BookValue | AZ1: ValueYTM | BA1: ValGains | BB1: PreAcqSC | BC1: PreAcqFC | BD1: FundGrpName | BE1: LastMarketValue | BF1: Rating | BG1: Term
A2: Equity | B2: ASBSN | C2: 1023 | D2: 720000 | E2: 5572800 | F2: 5572800 | G2: 1 | H2: 401774 | I2: 5655175.37 | J2: 5655175.37 | K2: 0 | L2: 0 | M2: -82375.37 | N2: 0 | O2: 7.74 | P2: Amanah Saham BSN | Q2: MYR | R2: 365 | S2: PB | T2: CIMB | U2: MYR | V2: EQT | W2: Finance | X2: Ringgit Malaysia | Y2: KLSE | Z2: 0 | AA2: CIMB Holdings Berhad | AB2: COMMERZ | AC2: ORD | AD2: MB | AG2: Ordinary | AH2: Aznil | AI2: MY | AK2: Amanah Saham Bank Simpanan Nasional | AM2: 100528690.3 | AN2: KUALA LUMPUR STOCK EXCHANGE | AQ2: 1 | AR2: 4 | AS2: 0 | AT2: 1 | AU2: 5.543492094 | AV2: 0 | AW2: 40788 | AX2: 41394 | AY2: 5655175.37 | AZ2: 0 | BA2: 14400 | BB2: 0 | BC2: 0 | BD2: Amanah Saham Bank Simpanan Nasional | BE2: 0 | BF2: N/A
A3: Equity | B3: ASBSN | C3: 1066 | D3: 435000 | E3: 3688800 | F3: 3688800 | G3: 1 | H3: 401790 | I3: 3644670.68 | J3: 3644670.68 | K3: 0 | L3: 0 | M3: 44129.32 | N3: 0 | O3: 8.48 | P3: Amanah Saham BSN | Q3: MYR | R3: 365 | S3: PB | T3: RHBCAP | U3: MYR | V3: EQT | W3: Finance | X3: Ringgit Malaysia | Y3: KLSE | Z3: 0 | AA3: Rhb Capital Berhad | AB3: RHB | AC3: ORD | AD3: MB | AG3: Ordinary | AH3: Aznil | AI3: MY | AK3: Amanah Saham Bank Simpanan Nasional | AM3: 100528690.3 | AN3: KUALA LUMPUR STOCK EXCHANGE | AQ3: 1 | AR3: 4 | AS3: 0 | AT3: 1 | AU3: 3.669400236 | AV3: 0 | AW3: 40854 | AX3: 41394 | AY3: 3644670.68 | AZ3: 0 | BA3: 52200 | BB3: 0 | BC3: 0 | BD3: Amanah Saham Bank Simpanan Nasional | BE3: 0 | BF3: N/A
A4: Equity | B4: ASBSN | C4: 1155 | D4: 170000 | E4: 1635400 | F4: 1635400 | G4: 1 | H4: 401773 | I4: 1537802.73 | J4: 1537802.73 | K4: 0 | L4: 0 | M4: 97597.27 | N4: 0 | O4: 9.62 | P4: Amanah Saham BSN | Q4: MYR | R4: 365 | S4: PB | T4: MAYBANK | U4: MYR | V4: EQT | W4: Finance | X4: Ringgit Malaysia | Y4: KLSE | Z4: 0 | AA4: Malayan Banking Berhad | AB4: MAYBANK | AC4: ORD | AD4: MB | AG4: Ordinary | AH4: Aznil | AI4: MY | AK4: Amanah Saham Bank Simpanan Nasional | AM4: 100528690.3 | AN4: KUALA LUMPUR STOCK EXCHANGE | AQ4: 1 | AR4: 4 | AS4: 0 | AT4: 1 | AU4: 1.62679927 | AV4: 0 | AW4: 41271 | AX4: 41394 | AY4: 1537802.73 | AZ4: 0 | BA4: 17231.76 | BB4: 0 | BC4: 0 | BD4: Amanah Saham Bank Simpanan Nasional | BE4: 0 | BF4: N/A
A5: Equity | B5: ASBSN | C5: 1651 | D5: 314000 | E5: 442740 | F5: 442740 | G5: 1 | H5: 401771 | I5: 719522.38 | J5: 719522.38 | K5: 0 | L5: 0 | M5: -276782.38 | N5: 0 | O5: 1.41 | P5: Amanah Saham BSN | Q5: MYR | R5: 365 | S5: PB | T5: MRCB | U5: MYR | V5: EQT | W5: Construction | X5: Ringgit Malaysia | Y5: KLSE | Z5: 0 | AA5: M'sian Resources Corporation Bhd | AB5: MRCB | AC5: ORD | AD5: MB | AG5: Ordinary | AH5: Aznil | AI5: MY | AK5: Amanah Saham Bank Simpanan Nasional | AM5: 100528690.3 | AN5: KUALA LUMPUR STOCK EXCHANGE | AQ5: 1 | AR5: 2 | AS5: 0 | AT5: 1 | AU5: 0.4404115866 | AV5: 0 | AW5: 40766 | AX5: 41394 | AY5: 719522.38 | AZ5: 0 | BA5: 3140 | BB5: 0 | BC5: 0 | BD5: Amanah Saham Bank Simpanan Nasional | BE5: 0 | BF5: N/A
A6: Equity | B6: ASBSN | C6: 1818 | D6: 600000 | E6: 4290000 | F6: 4290000 | G6: 1 | H6: 401775 | I6: 5701926.85 | J6: 5701926.85 | K6: 0 | L6: 0 | M6: -1411926.85 | N6: 0 | O6: 7.15 | P6: Amanah Saham BSN | Q6: MYR | R6: 365 | S6: PB | T6: BURSA | U6: MYR | V6: EQT | W6: Finance | X6: Ringgit Malaysia | Y6: KLSE | Z6: 0 | AA6: Bursa Malaysia Berhad | AB6: Bursa Malaysia | AC6: ORD | AD6: MB | AG6: Ordinary | AH6: Aznil | AI6: MY | AK6: Amanah Saham Bank Simpanan Nasional | AM6: 100528690.3 | AN6: KUALA LUMPUR STOCK EXCHANGE | AQ6: 1 | AR6: 4 | AS6: 0 | AT6: 1 | AU6: 4.267438466 | AV6: 0 | AW6: 40358 | AX6: 41394 | AY6: 5701926.85 | AZ6: 0 | BA6: -30000 | BB6: 0 | BC6: 0 | BD6: Amanah Saham Bank Simpanan Nasional | BE6: 0 | BF6: N/A
A7: Equity | B7: ASBSN | C7: 1961 | D7: 835000 | E7: 4200050 | F7: 4200050 | G7: 1 | H7: 401779 | I7: 4844642.5 | J7: 4844642.5 | K7: 0 | L7: 0 | M7: -644592.5 | N7: 0 | O7: 5.03 | P7: Amanah Saham BSN | Q7: MYR | R7: 365 | S7: PB | T7: IOICORP | U7: MYR | V7: EQT | W7: Plantation | X7: Ringgit Malaysia | Y7: KLSE | Z7: 0 | AA7: IOI Corporation Berhad | AB7: IOI | AC7: ORD | AD7: MB | AG7: Ordinary | AH7: Aznil | AI7: MY | AK7: Amanah Saham Bank Simpanan Nasional | AM7: 100528690.3 | AN7: KUALA LUMPUR STOCK EXCHANGE | AQ7: 1 | AR7: 9 | AS7: 0 | AT7: 1 | AU7: 4.177961522 | AV7: 0 | AW7: 40493 | AX7: 41394 | AY7: 4844642.5 | AZ7: 0 | BA7: 58450 | BB7: 0 | BC7: 0 | BD7: Amanah Saham Bank Simpanan Nasional | BE7: 0 | BF7: N/A
A8: Equity | B8: ASBSN | C8: 2003 | D8: 470000 | E8: 1682600 | F8: 1682600 | G8: 1 | H8: 401796 | I8: 2240009.27 | J8: 2240009.27 | K8: 0 | L8: 0 | M8: -557409.27 | N8: 0 | O8: 3.58 | P8: Amanah Saham BSN | Q8: MYR | R8: 365 | S8: PB | T8: KULIM | U8: MYR | V8: EQT | W8: Plantation | X8: Ringgit Malaysia | Y8: KLSE | Z8: 0 | AA8: Kulim (Malaysia) Berhad | AB8: Kulim Berhad | AC8: ORD | AD8: MB | AG8: Ordinary | AH8: Aznil | AI8: MY | AK8: Amanah Saham Bank Simpanan Nasional | AM8: 100528690.3 | AN8: KUALA LUMPUR STOCK EXCHANGE | AQ8: 1 | AR8: 9 | AS8: 0 | AT8: 1 | AU8: 1.67375104 | AV8: 0 | AW8: 41289 | AX8: 41394 | AY8: 2240009.27 | AZ8: 0 | BA8: 23500 | BB8: 0 | BC8: 0 | BD8: Amanah Saham Bank Simpanan Nasional | BE8: 0 | BF8: N/A
A9: Equity | B9: ASBSN | C9: 2445 | D9: 20000 | E9: 431200 | F9: 431200 | G9: 1 | H9: 401778 | I9: 434075.57 | J9: 434075.57 | K9: 0 | L9: 0 | M9: -2875.57 | N9: 0 | O9: 21.56 | P9: Amanah Saham BSN | Q9: MYR | R9: 365 | S9: PB | T9: KLK | U9: MYR | V9: EQT | W9: Plantation | X9: Ringgit Malaysia | Y9: KLSE | Z9: 0 | AA9: Kl Kepong Berhad | AB9: BK | AC9: ORD | AD9: MB | AG9: Ordinary | AH9: Aznil | AI9: MY | AK9: Amanah Saham Bank Simpanan Nasional | AM9: 100528690.3 | AN9: KUALA LUMPUR STOCK EXCHANGE | AQ9: 1 | AR9: 9 | AS9: 0 | AT9: 1 | AU9: 0.4289322766 | AV9: 0 | AW9: 41270 | AX9: 41394 | AY9: 434075.57 | AZ9: 0 | BA9: 8400 | BB9: 0 | BC9: 0 | BD9: Amanah Saham Bank Simpanan Nasional | BE9: 0 | BF9: N/A
A10: Equity | B10: ASBSN | C10: 2771 | D10: 180000 | E10: 921600 | F10: 921600 | G10: 1 | H10: 401801 | I10: 977881.52 | J10: 977881.52 | K10: 0 | L10: 0 | M10: -56281.52 | N10: 0 | O10: 5.12 | P10: Amanah Saham BSN | Q10: MYR | R10: 365 | S10: PB | T10: BSTEAD | U10: MYR | V10: EQT | W10: Plantation | X10: Ringgit Malaysia | Y10: KLSE | Z10: 0 | AA10: Boustead Holdings Bhd | AB10: Boustead | AC10: ORD | AD10: MB | AG10: Ordinary | AH10: Aznil | AI10: MY | AK10: Amanah Saham Bank Simpanan Nasional | AM10: 100528690.3 | AN10: KUALA LUMPUR STOCK EXCHANGE | AQ10: 1 | AR10: 9 | AS10: 0 | AT10: 1 | AU10: 0.9167532145 | AV10: 0 | AW10: 41148 | AX10: 41394 | AY10: 977881.52 | AZ10: 0 | BA10: -7200 | BB10: 0 | BC10: 0 | BD10: Amanah Saham Bank Simpanan Nasional | BE10: 0 | BF10: N/A
A11: Equity | B11: ASBSN | C11: 3336 | D11: 300000 | E11: 1635000 | F11: 1635000 | G11: 1 | H11: 401772 | I11: 1735554.65 | J11: 1735554.65 | K11: 0 | L11: 0 | M11: -100554.65 | N11: 0 | O11: 5.45 | P11: Amanah Saham BSN | Q11: MYR | R11: 365 | S11: PB | T11: IJM | U11: MYR | V11: EQT | W11: Construction | X11: Ringgit Malaysia | Y11: KLSE | Z11: 0 | AA11: IJM Corporation Berhad | AB11: IJM | AC11: ORD | AD11: MB | AG11: Ordinary | AH11: Aznil | AI11: MY | AK11: Amanah Saham Bank Simpanan Nasional | AM11: 100528690.3 | AN11: KUALA LUMPUR STOCK EXCHANGE | AQ11: 1 | AR11: 2 | AS11: 0 | AT11: 1 | AU11: 1.626401373 | AV11: 0 | AW11: 40970 | AX11: 41394 | AY11: 1735554.65 | AZ11: 0 | BA11: 12000 | BB11: 0 | BC11: 0 | BD11: Amanah Saham Bank Simpanan Nasional | BE11: 0 | BF11: N/A
A12: Equity | B12: ASBSN | C12: 3662 | D12: 2064000 | E12: 2641920 | F12: 2641920 | G12: 1 | H12: 401797 | I12: 3836519.98 | J12: 3836519.98 | K12: 0 | L12: 0 | M12: -1194599.98 | N12: 0 | O12: 1.28 | P12: Amanah Saham BSN | Q12: MYR | R12: 365 | S12: PB | T12: MFLOUR | U12: MYR | V12: EQT | W12: Consumer Prod | X12: Ringgit Malaysia | Y12: KLSE | Z12: 0 | AA12: Malayan Flour Mills Bhd | AB12: N/A | AC12: ORD | AD12: MB | AG12: Ordinary | AH12: Aznil | AI12: MY | AK12: Amanah Saham Bank Simpanan Nasional | AM12: 100528690.3 | AN12: KUALA LUMPUR STOCK EXCHANGE | AQ12: 1 | AR12: 3 | AS12: 0 | AT12: 1 | AU12: 2.628025882 | AV12: 0 | AW12: 41059 | AX12: 41394 | AY12: 3836519.98 | AZ12: 0 | BA12: -82560 | BB12: 0 | BC12: 0 | BD12: Amanah Saham Bank Simpanan Nasional | BE12: 0 | BF12: N/A
A13: Equity | B13: ASBSN | C13: 3719 | D13: 30000 | E13: 670200 | F13: 670200 | G13: 1 | H13: 401799 | I13: 612294.13 | J13: 612294.13 | K13: 0 | L13: 0 | M13: 57905.87 | N13: 0 | O13: 22.34 | P13: Amanah Saham BSN | Q13: MYR | R13: 365 | S13: PB | T13: PANAMY | U13: MYR | V13: EQT | W13: Consumer Prod | X13: Ringgit Malaysia | Y13: KLSE | Z13: 0 | AA13: Panasonic Manufacturing Malaysia Bhd | AB13: N/A | AC13: ORD | AD13: MB | AG13: Ordinary | AH13: Aznil | AI13: MY | AK13: Amanah Saham Bank Simpanan Nasional | AM13: 100528690.3 | AN13: KUALA LUMPUR STOCK EXCHANGE | AQ13: 1 | AR13: 3 | AS13: 0 | AT13: 1 | AU13: 0.6666753519 | AV13: 0 | AW13: 41277 | AX13: 41394 | AY13: 612294.13 | AZ13: 0 | BA13: 1200 | BB13: 0 | BC13: 0 | BD13: Amanah Saham Bank Simpanan Nasional | BE13: 0 | BF13: N/A
A14: Equity | B14: ASBSN | C14: 3816 | D14: 1096600 | E14: 4781176 | F14: 4781176 | G14: 1 | H14: 401769 | I14: 4861585.22 | J14: 4861585.22 | K14: 0 | L14: 0 | M14: -80409.22 | N14: 0 | O14: 4.36 | P14: Amanah Saham BSN | Q14: MYR | R14: 365 | S14: PB | T14: MISC | U14: MYR | V14: EQT | W14: Trdg/Service | X14: Ringgit Malaysia | Y14: KLSE | Z14: 0 | AA14: MISC BHD | AB14: PETRONAS | AC14: ORD | AD14: MB | AG14: Ordinary | AH14: Aznil | AI14: MY | AK14: Amanah Saham Bank Simpanan Nasional | AM14: 100528690.3 | AN14: KUALA LUMPUR STOCK EXCHANGE | AQ14: 1 | AR14: 13 | AS14: 0 | AT14: 1 | AU14: 4.756031323 | AV14: 0 | AW14: 41383 | AX14: 41394 | AY14: 4861585.22 | AZ14: 0 | BA14: -54830 | BB14: 0 | BC14: 0 | BD14: Amanah Saham Bank Simpanan Nasional | BE14: 0 | BF14: N/A
A15: Equity | B15: ASBSN | C15: 4006 | D15: 105900 | E15: 1035702 | F15: 1035702 | G15: 1 | H15: 401805 | I15: 797052.8 | J15: 797052.8 | K15: 0 | L15: 0 | M15: 238649.2 | N15: 0 | O15: 9.78 | P15: Amanah Saham BSN | Q15: MYR | R15: 365 | S15: PB | T15: ORIENT | U15: MYR | V15: EQT | W15: Industrial Prod | X15: Ringgit Malaysia | Y15: KLSE | Z15: 0 | AA15: Oriental Holdings Bhd | AB15: N/A | AC15: ORD | AD15: MB | AG15: Ordinary | AH15: Aznil | AI15: MY | AK15: Amanah Saham Bank Simpanan Nasional | AM15: 100528690.3 | AN15: KUALA LUMPUR STOCK EXCHANGE | AQ15: 1 | AR15: 6 | AS15: 0 | AT15: 1 | AU15: 1.030255141 | AV15: 0 | AW15: 41255 | AX15: 41394 | AY15: 797052.8 | AZ15: 0 | BA15: -3163.88 | BB15: 0 | BC15: 0 | BD15: Amanah Saham Bank Simpanan Nasional | BE15: 0 | BF15: N/A
A16: Equity | B16: ASBSN | C16: 4162 | D16: 22000 | E16: 1393040 | F16: 1393040 | G16: 1 | H16: 401807 | I16: 1294858.31 | J16: 1294858.31 | K16: 0 | L16: 0 | M16: 98181.69 | N16: 0 | O16: 63.32 | P16: Amanah Saham BSN | Q16: MYR | R16: 365 | S16: PB | T16: BAT | U16: MYR | V16: EQT | W16: Consumer Prod | X16: Ringgit Malaysia | Y16: KLSE | Z16: 0 | AA16: British American Tobacco (Malaysia) Bhd | AB16: British American Tobacco | AC16: ORD | AD16: MB | AG16: Ordinary | AH16: Aznil | AI16: MY | AK16: Amanah Saham Bank Simpanan Nasional | AM16: 100528690.3 | AN16: KUALA LUMPUR STOCK EXCHANGE | AQ16: 1 | AR16: 3 | AS16: 0 | AT16: 1 | AU16: 1.385713865 | AV16: 0 | AW16: 41311 | AX16: 41394 | AY16: 1294858.31 | AZ16: 0 | BA16: 17160 | BB16: 0 | BC16: 0 | BD16: Amanah Saham Bank Simpanan Nasional | BE16: 0 | BF16: N/A
A17: Equity | B17: ASBSN | C17: 4197 | D17: 170000 | E17: 1604800 | F17: 1604800 | G17: 1 | H17: 401783 | I17: 1571939.18 | J17: 1571939.18 | K17: 0 | L17: 0 | M17: 32860.82 | N17: 0 | O17: 9.44 | P17: Amanah Saham BSN | Q17: MYR | R17: 365 | S17: PB | T17: SIME | U17: MYR | V17: EQT | W17: Trdg/Service | X17: Ringgit Malaysia | Y17: KLSE | Z17: 0 | AA17: Sime Darby Bhd | AB17: SIME DARBY | AC17: ORD | AD17: MB | AG17: Ordinary | AH17: Aznil | AI17: MY | AK17: Amanah Saham Bank Simpanan Nasional | AM17: 100528690.3 | AN17: KUALA LUMPUR STOCK EXCHANGE | AQ17: 1 | AR17: 13 | AS17: 0 | AT17: 1 | AU17: 1.596360198 | AV17: 0 | AW17: 41299 | AX17: 41394 | AY17: 1571939.18 | AZ17: 0 | BA17: 0 | BB17: 0 | BC17: 0 | BD17: Amanah Saham Bank Simpanan Nasional | BE17: 0 | BF17: N/A
A18: Equity | B18: ASBSN | C18: 4863 | D18: 950000 | E18: 5244000 | F18: 5244000 | G18: 1 | H18: 401781 | I18: 5544373.87 | J18: 5544373.87 | K18: 0 | L18: 0 | M18: -300373.87 | N18: 0 | O18: 5.52 | P18: Amanah Saham BSN | Q18: MYR | R18: 365 | S18: PB | T18: TELEKOM | U18: MYR | V18: EQT | W18: Trdg/Service | X18: Ringgit Malaysia | Y18: KLSE | Z18: 0 | AA18: Telekom Malaysia Berhad | AB18: Telekom Malaysia | AC18: ORD | AD18: MB | AG18: Ordinary | AH18: Aznil | AI18: MY | AK18: Amanah Saham Bank Simpanan Nasional | AM18: 100528690.3 | AN18: KUALA LUMPUR STOCK EXCHANGE | AQ18: 1 | AR18: 13 | AS18: 0 | AT18: 1 | AU18: 5.216421286 | AV18: 0 | AW18: 41292 | AX18: 41394 | AY18: 5544373.87 | AZ18: 0 | BA18: 38000 | BB18: 0 | BC18: 0 | BD18: Amanah Saham Bank Simpanan Nasional | BE18: 0 | BF18: N/A
A19: Equity | B19: ASBSN | C19: 5012 | D19: 276000 | E19: 963240 | F19: 963240 | G19: 1 | H19: 401800 | I19: 1340756.35 | J19: 1340756.35 | K19: 0 | L19: 0 | M19: -377516.35 | N19: 0 | O19: 3.49 | P19: Amanah Saham BSN | Q19: MYR | R19: 365 | S19: PB | T19: TAANN | U19: MYR | V19: EQT | W19: Industrial Prod | X19: Ringgit Malaysia | Y19: KLSE | Z19: 0 | AA19: Ta Ann Holdings Berhad | AB19: N/A | AC19: ORD | AD19: MB | AG19: Ordinary | AH19: Aznil | AI19: MY | AK19: Amanah Saham Bank Simpanan Nasional | AM19: 100528690.3 | AN19: KUALA LUMPUR STOCK EXCHANGE | AQ19: 1 | AR19: 6 | AS19: 0 | AT19: 1 | AU19: 0.9581742256 | AV19: 0 | AW19: 41074 | AX19: 41394 | AY19: 1340756.35 | AZ19: 0 | BA19: -2760 | BB19: 0 | BC19: 0 | BD19: Amanah Saham Bank Simpanan Nasional | BE19: 0 | BF19: N/A
A20: Equity | B20: ASBSN | C20: 5112 | D20: 550000 | E20: 1204500 | F20: 1204500 | G20: 1 | H20: 401798 | I20: 1422438.16 | J20: 1422438.16 | K20: 0 | L20: 0 | M20: -217938.16 | N20: 0 | O20: 2.19 | P20: Amanah Saham BSN | Q20: MYR | R20: 365 | S20: PB | T20: THPLANT | U20: MYR | V20: EQT | W20: Plantation | X20: Ringgit Malaysia | Y20: KLSE | Z20: 0 | AA20: TH Plantation Berhad | AB20: Lembaga Tabung Haji | AC20: ORD | AD20: MB | AG20: Ordinary | AH20: Aznil | AI20: MY | AK20: Amanah Saham Bank Simpanan Nasional | AM20: 100528690.3 | AN20: KUALA LUMPUR STOCK EXCHANGE | AQ20: 1 | AR20: 9 | AS20: 0 | AT20: 1 | AU20: 1.198165415 | AV20: 0 | AW20: 41052 | AX20: 41394 | AY20: 1422438.16 | AZ20: 0 | BA20: -22000 | BB20: 0 | BC20: 0 | BD20: Amanah Saham Bank Simpanan Nasional | BE20: 0 | BF20: N/A
A21: Equity | B21: ASBSN | C21: 5166 | D21: 530000 | E21: 307400 | F21: 307400 | G21: 1 | H21: 401785 | I21: 2034140 | J21: 2034140 | K21: 0 | L21: 0 | M21: -1726740 | N21: 0 | O21: 0.58 | P21: Amanah Saham BSN | Q21: MYR | R21: 365 | S21: PB | T21: MEGB | U21: MYR | V21: EQT | W21: Trdg/Service | X21: Ringgit Malaysia | Y21: KLSE | Z21: 0 | AA21: Masterskill Education Group Bhd | AB21: Masterskill Education Group Bhd | AC21: ORD | AD21: MB | AG21: Ordinary | AH21: Aznil | AI21: MY | AK21: Amanah Saham Bank Simpanan Nasional | AM21: 100528690.3 | AN21: KUALA LUMPUR STOCK EXCHANGE | AQ21: 1 | AR21: 13 | AS21: 0 | AT21: 1 | AU21: 0.305783353 | AV21: 0 | AW21: 40358 | AX21: 41394 | AY21: 2034140 | AZ21: 0 | BA21: 5300 | BB21: 0 | BC21: 0 | BD21: Amanah Saham Bank Simpanan Nasional | BE21: 0 | BF21: N/A
A22: Equity | B22: ASBSN | C22: 5183 | D22: 1071700 | E22: 6998201 | F22: 6998201 | G22: 1 | H22: 401789 | I22: 7242086.3 | J22: 7242086.3 | K22: 0 | L22: 0 | M22: -243885.3 | N22: 0 | O22: 6.53 | P22: Amanah Saham BSN | Q22: MYR | R22: 365 | S22: PB | T22: PCHEM | U22: MYR | V22: EQT | W22: Industrial Prod | X22: Ringgit Malaysia | Y22: KLSE | Z22: 0 | AA22: Petronas Chemical Group Bhd | AB22: PETRONAS | AC22: ORD | AD22: MB | AG22: Ordinary | AH22: Aznil | AI22: MY | AK22: Amanah Saham Bank Simpanan Nasional | AM22: 100528690.3 | AN22: KUALA LUMPUR STOCK EXCHANGE | AQ22: 1 | AR22: 6 | AS22: 0 | AT22: 1 | AU22: 6.961396769 | AV22: 0 | AW22: 40973 | AX22: 41394 | AY22: 7242086.3 | AZ22: 0 | BA22: 42868 | BB22: 0 | BC22: 0 | BD22: Amanah Saham Bank Simpanan Nasional | BE22: 0 | BF22: N/A
A23: Equity | B23: ASBSN | C23: 5186 | D23: 893000 | E23: 3402330 | F23: 3402330 | G23: 1 | H23: 401795 | I23: 5128188.49 | J23: 5128188.49 | K23: 0 | L23: 0 | M23: -1725858.49 | N23: 0 | O23: 3.81 | P23: Amanah Saham BSN | Q23: MYR | R23: 365 | S23: PB | T23: MHB | U23: MYR | V23: EQT | W23: Trdg/Service | X23: Ringgit Malaysia | Y23: KLSE | Z23: 0 | AA23: Malaysia Marine And Heavy Engineering Holdings Bhd | AB23: PETRONAS | AC23: ORD | AD23: MB | AG23: Ordinary | AH23: Aznil | AI23: MY | AK23: Amanah Saham Bank Simpanan Nasional | AM23: 100528690.3 | AN23: KUALA LUMPUR STOCK EXCHANGE | AQ23: 1 | AR23: 13 | AS23: 0 | AT23: 1 | AU23: 3.38443681 | AV23: 0 | AW23: 41107 | AX23: 41394 | AY23: 5128188.49 | AZ23: 0 | BA23: -71440 | BB23: 0 | BC23: 0 | BD23: Amanah Saham Bank Simpanan Nasional | BE23: 0 | BF23: N/A
A24: Equity | B24: ASBSN | C24: 5209 | D24: 279200 | E24: 812472 | F24: 812472 | G24: 1 | H24: 401769 | I24: 840001.48 | J24: 840001.48 | K24: 0 | L24: 0 | M24: -27529.48 | N24: 0 | O24: 2.91 | P24: Amanah Saham BSN | Q24: MYR | R24: 365 | S24: PB | T24: GASMSIA | U24: MYR | V24: EQT | W24: Trdg/Service | X24: Ringgit Malaysia | Y24: KLSE | Z24: 1 | AA24: GAS MALAYSIA BHD | AB24: N/A | AC24: ORD | AD24: MB | AG24: Ordinary | AH24: Aznil | AI24: MY | AK24: Amanah Saham Bank Simpanan Nasional | AM24: 100528690.3 | AN24: KUALA LUMPUR STOCK EXCHANGE | AQ24: 1 | AR24: 13 | AS24: 0 | AT24: 1 | AU24: 0.8081991294 | AV24: 0 | AW24: 41382 | AX24: 41394 | AY24: 840001.48 | AZ24: 0 | BA24: -2792 | BB24: 0 | BC24: 0 | BD24: Amanah Saham Bank Simpanan Nasional | BE24: 0 | BF24: N/A
A25: Equity | B25: ASBSN | C25: 5215 | D25: 400000 | E25: 1032000 | F25: 1032000 | G25: 1 | H25: 401792 | I25: 1164907.17 | J25: 1164907.17 | K25: 0 | L25: 0 | M25: -132907.17 | N25: 0 | O25: 2.58 | P25: Amanah Saham BSN | Q25: MYR | R25: 365 | S25: PB | T25: IJM LAND | U25: MYR | V25: EQT | W25: Properties | X25: Ringgit Malaysia | Y25: KLSE | Z25: 0 | AA25: RB Land Holdings Bhd | AB25: IJM | AC25: ORD | AD25: MB | AG25: Ordinary | AH25: Aznil | AI25: MY | AK25: Amanah Saham Bank Simpanan Nasional | AM25: 100528690.3 | AN25: KUALA LUMPUR STOCK EXCHANGE | AQ25: 1 | AR25: 11 | AS25: 0 | AT25: 1 | AU25: 1.02657261 | AV25: 0 | AW25: 40718 | AX25: 41394 | AY25: 1164907.17 | AZ25: 0 | BA25: -4000 | BB25: 0 | BC25: 0 | BD25: Amanah Saham Bank Simpanan Nasional | BE25: 0 | BF25: N/A
A26: Equity | B26: ASBSN | C26: 5218 | D26: 860000 | E26: 2734800 | F26: 2734800 | G26: 1 | H26: 401802 | I26: 2604387.51 | J26: 2604387.51 | K26: 0 | L26: 0 | M26: 130412.49 | N26: 0 | O26: 3.18 | P26: Amanah Saham BSN | Q26: MYR | R26: 365 | S26: PB | T26: SKPETRO | U26: MYR | V26: EQT | W26: Oil and Gas | X26: Ringgit Malaysia | Y26: KLSE | Z26: 1 | AA26: SAPURAKENCANA PETROLEUM BHD | AB26: N/A | AC26: ORD | AD26: MB | AG26: Ordinary | AH26: Aznil | AI26: MY | AK26: Amanah Saham Bank Simpanan Nasional | AM26: 100528690.3 | AN26: KUALA LUMPUR STOCK EXCHANGE | AQ26: 1 | AR26: 17 | AS26: 0 | AT26: 1 | AU26: 2.720417416 | AV26: 0 | AW26: 41288 | AX26: 41394 | AY26: 2604387.51 | AZ26: 0 | BA26: 68800 | BB26: 0 | BC26: 0 | BD26: Amanah Saham Bank Simpanan Nasional | BE26: 0 | BF26: N/A
A27: Equity | B27: ASBSN | C27: 5258 | D27: 173800 | E27: 610038 | F27: 610038 | G27: 1 | H27: 401806 | I27: 533755.56 | J27: 533755.56 | K27: 0 | L27: 0 | M27: 76282.44 | N27: 0 | O27: 3.51 | P27: Amanah Saham BSN | Q27: MYR | R27: 365 | S27: PB | T27: BIMB | U27: MYR | V27: EQT | W27: Finance | X27: Ringgit Malaysia | Y27: KLSE | Z27: 0 | AA27: Bank Islam Malaysia Bhd | AB27: Bank Islam Berhad | AC27: ORD | AD27: MB | AG27: Ordinary | AH27: Aznil | AI27: MY | AK27: Amanah Saham Bank Simpanan Nasional | AM27: 100528690.3 | AN27: KUALA LUMPUR STOCK EXCHANGE | AQ27: 1 | AR27: 4 | AS27: 0 | AT27: 1 | AU27: 0.6068297499 | AV27: 0 | AW27: 41170 | AX27: 41394 | AY27: 533755.56 | AZ27: 0 | BA27: -20856 | BB27: 0 | BC27: 0 | BD27: Amanah Saham Bank Simpanan Nasional | BE27: 0 | BF27: N/A
A28: Equity | B28: ASBSN | C28: 5347 | D28: 1044300 | E28: 8197755 | F28: 8197755 | G28: 1 | H28: 401782 | I28: 8191734.24 | J28: 8191734.24 | K28: 0 | L28: 0 | M28: 6020.76 | N28: 0 | O28: 7.85 | P28: Amanah Saham BSN | Q28: MYR | R28: 365 | S28: PB | T28: TENAGA | U28: MYR | V28: EQT | W28: Trdg/Service | X28: Ringgit Malaysia | Y28: KLSE | Z28: 0 | AA28: Tenaga Nasional Berhad | AB28: TENAGA | AC28: ORD | AD28: MB | AG28: Ordinary | AH28: Aznil | AI28: MY | AK28: Amanah Saham Bank Simpanan Nasional | AM28: 100528690.3 | AN28: KUALA LUMPUR STOCK EXCHANGE | AQ28: 1 | AR28: 13 | AS28: 0 | AT28: 1 | AU28: 8.154642196 | AV28: 0 | AW28: 40547 | AX28: 41394 | AY28: 8191734.24 | AZ28: 0 | BA28: 10443 | BB28: 0 | BC28: 0 | BD28: Amanah Saham Bank Simpanan Nasional | BE28: 0 | BF28: N/A
A29: Equity | B29: ASBSN | C29: 5703 | D29: 838000 | E29: 938560 | F29: 938560 | G29: 1 | H29: 401787 | I29: 1140480.55 | J29: 1140480.55 | K29: 0 | L29: 0 | M29: -201920.55 | N29: 0 | O29: 1.12 | P29: Amanah Saham BSN | Q29: MYR | R29: 365 | S29: PB | T29: MUHIBAH | U29: MYR | V29: EQT | W29: Construction | X29: Ringgit Malaysia | Y29: KLSE | Z29: 0 | AA29: Muhibbah Engineering (M) Bhd | AB29: N/A | AC29: ORD | AD29: MB | AG29: Ordinary | AH29: Aznil | AI29: MY | AK29: Amanah Saham Bank Simpanan Nasional | AM29: 100528690.3 | AN29: KUALA LUMPUR STOCK EXCHANGE | AQ29: 1 | AR29: 2 | AS29: 0 | AT29: 1 | AU29: 0.9336240202 | AV29: 0 | AW29: 40599 | AX29: 41394 | AY29: 1140480.55 | AZ29: 0 | BA29: -16760 | BB29: 0 | BC29: 0 | BD29: Amanah Saham Bank Simpanan Nasional | BE29: 0 | BF29: N/A
A30: Equity | B30: ASBSN | C30: 6012 | D30: 425300 | E30: 2875028 | F30: 2875028 | G30: 1 | H30: 401784 | I30: 2755588.54 | J30: 2755588.54 | K30: 0 | L30: 0 | M30: 119439.46 | N30: 0 | O30: 6.76 | P30: Amanah Saham BSN | Q30: MYR | R30: 365 | S30: PB | T30: MAXIS | U30: MYR | V30: EQT | W30: Trdg/Service | X30: Ringgit Malaysia | Y30: KLSE | Z30: 0 | AA30: MAXIS BHD | AB30: MAXIS | AC30: ORD | AD30: MB | AG30: Ordinary | AH30: Aznil | AI30: MY | AK30: Amanah Saham Bank Simpanan Nasional | AM30: 100528690.3 | AN30: KUALA LUMPUR STOCK EXCHANGE | AQ30: 1 | AR30: 13 | AS30: 0 | AT30: 1 | AU30: 2.859907944 | AV30: 0 | AW30: 41254 | AX30: 41394 | AY30: 2755588.54 | AZ30: 0 | BA30: -4253 | BB30: 0 | BC30: 0 | BD30: Amanah Saham Bank Simpanan Nasional | BE30: 0 | BF30: N/A
A31: Equity | B31: ASBSN | C31: 6033 | D31: 6700 | E31: 132124 | F31: 132124 | G31: 1 | H31: 401791 | I31: 123230.81 | J31: 123230.81 | K31: 0 | L31: 0 | M31: 8893.19 | N31: 0 | O31: 19.72 | P31: Amanah Saham BSN | Q31: MYR | R31: 365 | S31: PB | T31: PETGAS | U31: MYR | V31: EQT | W31: Oil and Gas | X31: Ringgit Malaysia | Y31: KLSE | Z31: 0 | AA31: Petronas Gas Berhad | AB31: PETRONAS | AC31: ORD | AD31: MB | AG31: Ordinary | AH31: Aznil | AI31: MY | AK31: Amanah Saham Bank Simpanan Nasional | AM31: 100528690.3 | AN31: KUALA LUMPUR STOCK EXCHANGE | AQ31: 1 | AR31: 17 | AS31: 0 | AT31: 1 | AU31: 0.1314291468 | AV31: 0 | AW31: 41166 | AX31: 41394 | AY31: 123230.81 | AZ31: 0 | BA31: 479.43 | BB31: 0 | BC31: 0 | BD31: Amanah Saham Bank Simpanan Nasional | BE31: 0 | BF31: N/A
A32: Equity | B32: ASBSN | C32: 6742 | D32: 300000 | E32: 453000 | F32: 453000 | G32: 1 | H32: 401788 | I32: 744813.68 | J32: 744813.68 | K32: 0 | L32: 0 | M32: -291813.68 | N32: 0 | O32: 1.51 | P32: Amanah Saham BSN | Q32: MYR | R32: 365 | S32: PB | T32: YTLPOWR | U32: MYR | V32: EQT | W32: Infrastructure Project Company | X32: Ringgit Malaysia | Y32: KLSE | Z32: 0 | AA32: YTL Power International Berhad | AB32: YTL & SONS | AC32: ORD | AD32: MB | AG32: Ordinary | AH32: Aznil | AI32: MY | AK32: Amanah Saham Bank Simpanan Nasional | AM32: 100528690.3 | AN32: KUALA LUMPUR STOCK EXCHANGE | AQ32: 1 | AR32: 7 | AS32: 0 | AT32: 1 | AU32: 0.4506176282 | AV32: 0 | AW32: 40532 | AX32: 41394 | AY32: 744813.68 | AZ32: 0 | BA32: 3000 | BB32: 0 | BC32: 0 | BD32: Amanah Saham Bank Simpanan Nasional | BE32: 0 | BF32: N/A
A33: Equity | B33: ASBSN | C33: 6807 | D33: 120000 | E33: 205200 | F33: 205200 | G33: 1 | H33: 401777 | I33: 470780.08 | J33: 470780.08 | K33: 0 | L33: 0 | M33: -265580.08 | N33: 0 | O33: 1.71 | P33: Amanah Saham BSN | Q33: MYR | R33: 365 | S33: PB | T33: PUNCAK | U33: MYR | V33: EQT | W33: Infrastructure Project Company | X33: Ringgit Malaysia | Y33: KLSE | Z33: 0 | AA33: Puncak Niaga Holdings Berhad | AB33: PUNCAK | AC33: ORD | AD33: MB | AG33: Ordinary | AH33: Aznil | AI33: MY | AK33: Amanah Saham Bank Simpanan Nasional | AM33: 100528690.3 | AN33: KUALA LUMPUR STOCK EXCHANGE | AQ33: 1 | AR33: 7 | AS33: 0 | AT33: 1 | AU33: 0.2041208329 | AV33: 0 | AW33: 40358 | AX33: 41394 | AY33: 470780.08 | AZ33: 0 | BA33: 0 | BB33: 0 | BC33: 0 | BD33: Amanah Saham Bank Simpanan Nasional | BE33: 0 | BF33: N/A
A34: Equity | B34: ASBSN | C34: 6888 | D34: 150000 | E34: 1015500 | F34: 1015500 | G34: 1 | H34: 401769 | I34: 962408 | J34: 962408 | K34: 0 | L34: 0 | M34: 53092 | N34: 0 | O34: 6.77 | P34: Amanah Saham BSN | Q34: MYR | R34: 365 | S34: PB | T34: AXIATA | U34: MYR | V34: EQT | W34: Trdg/Service | X34: Ringgit Malaysia | Y34: KLSE | Z34: 0 | AA34: AXIATA GROUP BERHAD | AB34: AXIATA GROUP | AC34: ORD | AD34: MB | AG34: Ordinary | AH34: Aznil | AI34: MY | AK34: Amanah Saham Bank Simpanan Nasional | AM34: 100528690.3 | AN34: KUALA LUMPUR STOCK EXCHANGE | AQ34: 1 | AR34: 13 | AS34: 0 | AT34: 1 | AU34: 1.010159385 | AV34: 0 | AW34: 41338 | AX34: 41394 | AY34: 962408 | AZ34: 0 | BA34: 0 | BB34: 0 | BC34: 0 | BD34: Amanah Saham Bank Simpanan Nasional | BE34: 0
A35: Equity | B35: ASBSN | C35: 6947 | D35: 950000 | E35: 4408000 | F35: 4408000 | G35: 1 | H35: 401793 | I35: 4764780.32 | J35: 4764780.32 | K35: 0 | L35: 0 | M35: -356780.32 | N35: 0 | O35: 4.64 | P35: Amanah Saham BSN | Q35: MYR | R35: 365 | S35: PB | T35: DIGI | U35: MYR | V35: EQT | W35: Trdg/Service | X35: Ringgit Malaysia | Y35: KLSE | Z35: 0 | AA35: Digi.Com Berhad | AB35: Digi | AC35: ORD | AD35: MB | AG35: Ordinary | AH35: Aznil | AI35: MY | AK35: Amanah Saham Bank Simpanan Nasional | AM35: 100528690.3 | AN35: KUALA LUMPUR STOCK EXCHANGE | AQ35: 1 | AR35: 13 | AS35: 0 | AT35: 1 | AU35: 4.384817892 | AV35: 0 | AW35: 41310 | AX35: 41394 | AY35: 4764780.32 | AZ35: 0 | BA35: 57000 | BB35: 0 | BC35: 0 | BD35: Amanah Saham Bank Simpanan Nasional | BE35: 0 | BF35: N/A
A36: Equity | B36: ASBSN | C36: 7076 | D36: 432800 | E36: 1082000 | F36: 1082000 | G36: 1 | H36: 401803 | I36: 1146063.12 | J36: 1146063.12 | K36: 0 | L36: 0 | M36: -64063.12 | N36: 0 | O36: 2.5 | P36: Amanah Saham BSN | Q36: MYR | R36: 365 | S36: PB | T36: CBIP | U36: MYR | V36: EQT | W36: Plantation | X36: Ringgit Malaysia | Y36: KLSE | Z36: 0 | AA36: CB Industrial Product Holding Berhad | AB36: CBIP | AC36: ORD | AD36: MB | AG36: Ordinary | AH36: Aznil | AI36: MY | AK36: Amanah Saham Bank Simpanan Nasional | AM36: 100528690.3 | AN36: KUALA LUMPUR STOCK EXCHANGE | AQ36: 1 | AR36: 9 | AS36: 0 | AT36: 1 | AU36: 1.076309655 | AV36: 0 | AW36: 41324 | AX36: 41394 | AY36: 1146063.12 | AZ36: 0 | BA36: 0 | BB36: 0 | BC36: 0 | BD36: Amanah Saham Bank Simpanan Nasional | BE36: 0 | BF36: N/A
A37: Equity | B37: ASBSN | C37: 7108 | D37: 1300000 | E37: 1911000 | F37: 1911000 | G37: 1 | H37: 401794 | I37: 2785470.45 | J37: 2785470.45 | K37: 0 | L37: 0 | M37: -874470.45 | N37: 0 | O37: 1.47 | P37: Amanah Saham BSN | Q37: MYR | R37: 365 | S37: PB | T37: PERDANA | U37: MYR | V37: EQT | W37: Oil and Gas | X37: Ringgit Malaysia | Y37: KLSE | Z37: 0 | AA37: Petra Perdana Berhad | AB37: PETRA | AC37: ORD | AD37: MB | AG37: Ordinary | AH37: Aznil | AI37: MY | AK37: Amanah Saham Bank Simpanan Nasional | AM37: 100528690.3 | AN37: KUALA LUMPUR STOCK EXCHANGE | AQ37: 1 | AR37: 17 | AS37: 0 | AT37: 1 | AU37: 1.900949862 | AV37: 0 | AW37: 40779 | AX37: 41394 | AY37: 2785470.45 | AZ37: 0 | BA37: 26000 | BB37: 0 | BC37: 0 | BD37: Amanah Saham Bank Simpanan Nasional | BE37: 0 | BF37: N/A
A38: Equity | B38: ASBSN | C38: 7164 | D38: 140625 | E38: 60468.75 | F38: 60468.75 | G38: 1 | H38: 401776 | I38: 1123132.15 | J38: 1123132.15 | K38: 0 | L38: 0 | M38: -1062663.4 | N38: 0 | O38: 0.43 | P38: Amanah Saham BSN | Q38: MYR | R38: 365 | S38: PB | T38: KNM | U38: MYR | V38: EQT | W38: Oil and Gas | X38: Ringgit Malaysia | Y38: KLSE | Z38: 0 | AA38: KNM Group Bhd | AB38: KNM | AC38: ORD | AD38: MB | AG38: Ordinary | AH38: Aznil | AI38: MY | AK38: Amanah Saham Bank Simpanan Nasional | AM38: 100528690.3 | AN38: KUALA LUMPUR STOCK EXCHANGE | AQ38: 1 | AR38: 17 | AS38: 0 | AT38: 1 | AU38: 0.06015073887 | AV38: 0 | AW38: 40528 | AX38: 41394 | AY38: 1123132.15 | AZ38: 0 | BA38: -1406.25 | BB38: 0 | BC38: 0 | BD38: Amanah Saham Bank Simpanan Nasional | BE38: 0 | BF38: N/A
A39: Equity | B39: ASBSN | C39: 7277 | D39: 400000 | E39: 948000 | F39: 948000 | G39: 1 | H39: 401769 | I39: 956474.2 | J39: 956474.2 | K39: 0 | L39: 0 | M39: -8474.2 | N39: 0 | O39: 2.37 | P39: Amanah Saham BSN | Q39: MYR | R39: 365 | S39: PB | T39: DIALOG | U39: MYR | V39: EQT | W39: Trdg/Service | X39: Ringgit Malaysia | Y39: KLSE | Z39: 0 | AA39: Dialog Group Bhd | AB39: N/A | AC39: ORD | AD39: MB | AG39: Ordinary | AH39: Aznil | AI39: MY | AK39: Amanah Saham Bank Simpanan Nasional | AM39: 100528690.3 | AN39: KUALA LUMPUR STOCK EXCHANGE | AQ39: 1 | AR39: 13 | AS39: 0 | AT39: 1 | AU39: 0.9430143743 | AV39: 0 | AW39: 41374 | AX39: 41394 | AY39: 956474.2 | AZ39: 0 | BA39: 8000 | BB39: 0 | BC39: 0 | BD39: Amanah Saham Bank Simpanan Nasional | BE39: 0 | BF39: N/A
A40: Equity | B40: ASBSN | C40: 8664 | D40: 469000 | E40: 1608670 | F40: 1608670 | G40: 1 | H40: 401780 | I40: 1467338.94 | J40: 1467338.94 | K40: 0 | L40: 0 | M40: 141331.06 | N40: 0 | O40: 3.43 | P40: Amanah Saham BSN | Q40: MYR | R40: 365 | S40: PB | T40: SPSETIA | U40: MYR | V40: EQT | W40: Properties | X40: Ringgit Malaysia | Y40: KLSE | Z40: 0 | AA40: S P Setia Berhad | AB40: SPSETIA | AC40: ORD | AD40: MB | AG40: Ordinary | AH40: Aznil | AI40: MY | AK40: Amanah Saham Bank Simpanan Nasional | AM40: 100528690.3 | AN40: KUALA LUMPUR STOCK EXCHANGE | AQ40: 1 | AR40: 11 | AS40: 0 | AT40: 1 | AU40: 1.600209845 | AV40: 0 | AW40: 41318 | AX40: 41394 | AY40: 1467338.94 | AZ40: 0 | BA40: 14070 | BB40: 0 | BC40: 0 | BD40: Amanah Saham Bank Simpanan Nasional | BE40: 0 | BF40: N/A
A41: Equity | B41: ASBSN | C41: 9679 | D41: 1046500 | E41: 2511600 | F41: 2511600 | G41: 1 | H41: 401786 | I41: 2905401.26 | J41: 2905401.26 | K41: 0 | L41: 0 | M41: -393801.26 | N41: 0 | O41: 2.4 | P41: Amanah Saham BSN | Q41: MYR | R41: 365 | S41: PB | T41: WCT | U41: MYR | V41: EQT | W41: Construction | X41: Ringgit Malaysia | Y41: KLSE | Z41: 0 | AA41: Wct Engineering Berhad | AB41: WCT | AC41: ORD | AD41: MB | AG41: Ordinary | AH41: Aznil | AI41: MY | AK41: Amanah Saham Bank Simpanan Nasional | AM41: 100528690.3 | AN41: KUALA LUMPUR STOCK EXCHANGE | AQ41: 1 | AR41: 2 | AS41: 0 | AT41: 1 | AU41: 2.498391247 | AV41: 0 | AW41: 41249 | AX41: 41394 | AY41: 2905401.26 | AZ41: 0 | BA41: 20930 | BB41: 0 | BC41: 0 | BD41: Amanah Saham Bank Simpanan Nasional | BE41: 0 | BF41: N/A
A42: Bond | B42: ASBSN | C42: RA130112 | D42: 2000000 | E42: 1997071.78 | F42: 1997071.781 | G42: 1 | H42: 41410 | I42: 1994509.59 | J42: 1994509.59 | K42: 0 | L42: 0 | M42: 0 | N42: 0 | O42: 99.85358904 | P42: Amanah Saham BSN | Q42: MYR | R42: 365 | S42: PB | T42: CCP RA130112 | U42: MYR | V42: BND | W42: Finance | X42: Ringgit Malaysia | Z42: 0 | AA42: Sabah Development Bank Bhd | AB42: N/A | AE42: 6 | AF42: Corporate Paper | AH42: Aznil | AI42: MY | AK42: Amanah Saham Bank Simpanan Nasional | AL42: P1 | AM42: 100528690.3 | AQ42: 1 | AR42: 4 | AS42: 0 | AT42: 2 | AU42: 1.986568983 | AV42: 0.0334 | AW42: 41380 | AX42: 41394 | AY42: 1997071.78 | AZ42: 0.0334 | BA42: 183.01 | BB42: 0 | BC42: 0 | BD42: Amanah Saham Bank Simpanan Nasional | BE42: 0 | BF42: N/A | BG42: 0
A43: Bond | B43: ASBSN | C43: RA130120 | D43: 2000000 | E43: 1995985.75 | F43: 1995985.753 | G43: 1 | H43: 41416 | I43: 1994526.03 | J43: 1994526.03 | K43: 0 | L43: 0 | M43: 0 | N43: 0 | O43: 99.79928767 | P43: Amanah Saham BSN | Q43: MYR | R43: 365 | S43: PB | T43: CCP RA130120 | U43: MYR | V43: BND | W43: Finance | X43: Ringgit Malaysia | Z43: 0 | AA43: Sabah Development Bank Bhd | AB43: N/A | AE43: 6 | AF43: Corporate Paper | AH43: Aznil | AI43: MY | AK43: Amanah Saham Bank Simpanan Nasional | AL43: P1 | AM43: 100528690.3 | AQ43: 1 | AR43: 4 | AS43: 0 | AT43: 2 | AU43: 1.985488667 | AV43: 0.0333 | AW43: 41386 | AX43: 41394 | AY43: 1995985.75 | AZ43: 0.0333 | BA43: 182.46 | BB43: 0 | BC43: 0 | BD43: Amanah Saham Bank Simpanan Nasional | BE43: 0 | BF43: N/A | BG43: 0
A44: Placements of Deposits | B44: ASBSN | C44: RPI*MYR*BKRB | D44: 374000 | E44: 375931.48 | F44: 374000 | G44: 1 | H44: 41429 | I44: 374000 | J44: 374000 | K44: 1931.48 | L44: 1931.48 | M44: 0 | N44: 0 | O44: 0 | P44: Amanah Saham BSN | Q44: MYR | R44: 365 | S44: PB | T44: RPI*MYR*BKRB | U44: MYR | V44: CSH | W44: Money Market Placement | X44: Ringgit Malaysia | Z44: 1 | AA44: Bank Rakyat Berhad | AB44: N/A | AG44: SIA | AH44: Aznil | AI44: MY | AK44: Amanah Saham Bank Simpanan Nasional | AM44: 100528690.3 | AO44: RPI | AP44: SIA | AQ44: 1 | AR44: 96 | AS44: 0 | AT44: 4 | AU44: 0.372 | AV44: 0.0325 | AW44: 41337 | AX44: 41394 | AY44: 375931.48 | AZ44: 0 | BA44: 66.6 | BB44: 0 | BC44: 0 | BD44: Amanah Saham Bank Simpanan Nasional | BE44: 0 | BF44: N/A
A45: Placements of Deposits | B45: ASBSN | C45: RPI*MYR*BKRB | D45: 130000 | E45: 130254.66 | F45: 130000 | G45: 1 | H45: 41464 | I45: 130000 | J45: 130000 | K45: 254.66 | L45: 254.66 | M45: 0 | N45: 0 | O45: 0 | P45: Amanah Saham BSN | Q45: MYR | R45: 365 | S45: PB | T45: RPI*MYR*BKRB | U45: MYR | V45: CSH | W45: Money Market Placement | X45: Ringgit Malaysia | Z45: 1 | AA45: Bank Rakyat Berhad | AB45: N/A | AG45: SIA | AH45: Aznil | AI45: MY | AK45: Amanah Saham Bank Simpanan Nasional | AM45: 100528690.3 | AO45: RPI | AP45: SIA | AQ45: 1 | AR45: 96 | AS45: 0 | AT45: 4 | AU45: 0.1293 | AV45: 0.0325 | AW45: 41373 | AX45: 41394 | AY45: 130254.66 | AZ45: 0 | BA45: 23.15 | BB45: 0 | BC45: 0 | BD45: Amanah Saham Bank Simpanan Nasional | BE45: 0 | BF45: N/A
A46: Placements of Deposits | B46: ASBSN | C46: RPI*MYR*BKRB | D46: 308000 | E46: 308411.37 | F46: 308000 | G46: 1 | H46: 41471 | I46: 308000 | J46: 308000 | K46: 411.37 | L46: 411.37 | M46: 0 | N46: 0 | O46: 0 | P46: Amanah Saham BSN | Q46: MYR | R46: 365 | S46: PB | T46: RPI*MYR*BKRB | U46: MYR | V46: CSH | W46: Money Market Placement | X46: Ringgit Malaysia | Z46: 1 | AA46: Bank Rakyat Berhad | AB46: N/A | AG46: SIA | AH46: Aznil | AI46: MY | AK46: Amanah Saham Bank Simpanan Nasional | AM46: 100528690.3 | AO46: RPI | AP46: SIA | AQ46: 1 | AR46: 96 | AS46: 0 | AT46: 4 | AU46: 0.3063 | AV46: 0.0325 | AW46: 41380 | AX46: 41394 | AY46: 308411.37 | AZ46: 0 | BA46: 54.85 | BB46: 0 | BC46: 0 | BD46: Amanah Saham Bank Simpanan Nasional | BE46: 0 | BF46: N/A
A47: Placements of Deposits | B47: ASBSN | C47: RPI*MYR*BKRB | D47: 442000 | E47: 442354.21 | F47: 442000 | G47: 1 | H47: 41477 | I47: 442000 | J47: 442000 | K47: 354.21 | L47: 354.21 | M47: 0 | N47: 0 | O47: 0 | P47: Amanah Saham BSN | Q47: MYR | R47: 365 | S47: PB | T47: RPI*MYR*BKRB | U47: MYR | V47: CSH | W47: Money Market Placement | X47: Ringgit Malaysia | Z47: 1 | AA47: Bank Rakyat Berhad | AB47: N/A | AG47: SIA | AH47: Aznil | AI47: MY | AK47: Amanah Saham Bank Simpanan Nasional | AM47: 100528690.3 | AO47: RPI | AP47: SIA | AQ47: 1 | AR47: 96 | AS47: 0 | AT47: 4 | AU47: 0.4396 | AV47: 0.0325 | AW47: 41386 | AX47: 41394 | AY47: 442354.21 | AZ47: 0 | BA47: 78.71 | BB47: 0 | BC47: 0 | BD47: Amanah Saham Bank Simpanan Nasional | BE47: 0 | BF47: N/A
A48: Placements of Deposits | B48: ASBSN | C48: RPC*MYR*RHBINV | D48: 534000 | E48: 534215.79 | F48: 534000 | G48: 1 | H48: 41396 | I48: 534000 | J48: 534000 | K48: 215.79 | L48: 215.79 | M48: 0 | N48: 0 | O48: 0 | P48: Amanah Saham BSN | Q48: MYR | R48: 365 | S48: PB | T48: RPC*MYR*RHBINV | U48: MYR | V48: CSH | W48: Money Market Placement | X48: Ringgit Malaysia | Z48: 0 | AA48: RHB Inv Bank | AB48: RHB | AG48: Repo | AH48: Aznil | AI48: MY | AK48: Amanah Saham Bank Simpanan Nasional | AM48: 100528690.3 | AO48: RPC | AP48: Repo | AQ48: 1 | AR48: 96 | AS48: 0 | AT48: 4 | AU48: 0.5311 | AV48: 0.0295 | AW48: 41390 | AX48: 41394 | AY48: 534215.79 | AZ48: 0 | BA48: 86.32 | BB48: 0 | BC48: 0 | BD48: Amanah Saham Bank Simpanan Nasional | BE48: 0 | BF48: N/A
A49: Placements of Deposits | B49: ASBSN | C49: RPC*MYR*KAF | D49: 1666000 | E49: 1666273.86 | F49: 1666000 | G49: 1 | H49: 41397 | I49: 1666000 | J49: 1666000 | K49: 273.86 | L49: 273.86 | M49: 0 | N49: 0 | O49: 0 | P49: Amanah Saham BSN | Q49: MYR | R49: 365 | S49: PB | T49: RPC*MYR*KAF | U49: MYR | V49: CSH | W49: Money Market Placement | X49: Ringgit Malaysia | Z49: 0 | AA49: KAF INV BANK | AB49: N/A | AG49: Repo | AH49: Aznil | AI49: MY | AK49: Amanah Saham Bank Simpanan Nasional | AM49: 100528690.3 | AO49: RPC | AP49: Repo | AQ49: 1 | AR49: 96 | AS49: 0 | AT49: 4 | AU49: 1.6572 | AV49: 0.03 | AW49: 41393 | AX49: 41394 | AY49: 1666273.86 | AZ49: 0 | BA49: 273.86 | BB49: 0 | BC49: 0 | BD49: Amanah Saham Bank Simpanan Nasional | BE49: 0 | BF49: N/A
A50: Placements of Deposits | B50: ASBSN | C50: RPC*MYR*KAF | D50: 1208000 | E50: 1208100.94 | F50: 1208000 | G50: 1 | H50: 41400 | I50: 1208000 | J50: 1208000 | K50: 100.94 | L50: 100.94 | M50: 0 | N50: 0 | O50: 0 | P50: Amanah Saham BSN | Q50: MYR | R50: 365 | S50: PB | T50: RPC*MYR*KAF | U50: MYR | V50: CSH | W50: Money Market Placement | X50: Ringgit Malaysia | Z50: 0 | AA50: KAF INV BANK | AB50: N/A | AG50: Repo | AH50: Aznil | AI50: MY | AK50: Amanah Saham Bank Simpanan Nasional | AM50: 100528690.3 | AO50: RPC | AP50: Repo | AQ50: 1 | AR50: 96 | AS50: 0 | AT50: 4 | AU50: 1.2016 | AV50: 0.0305 | AW50: 41394 | AX50: 41394 | AY50: 1208100.94 | AZ50: 0 | BA50: 201.88 | BB50: 0 | BC50: 0 | BD50: Amanah Saham Bank Simpanan Nasional | BE50: 0 | BF50: N/A
A51: Cash And Equivalent | B51: ASBSN | C51: TradeDrVal | D51: 0 | E51: 2589818.65 | F51: 2589818.65 | G51: 1 | H51: 401769 | I51: 2589818.65 | J51: 0 | K51: 0 | L51: 0 | M51: 0 | N51: 0 | O51: 0 | P51: Amanah Saham BSN | Q51: MYR | R51: 365 | S51: PB | U51: MYR | V51: TBI | AH51: Aznil | AK51: Amanah Saham Bank Simpanan Nasional | AM51: 100528690.3 | AQ51: 1 | AS51: 0 | AT51: 5 | AU51: 2.576198538 | AV51: 0 | AW51: 401769 | AX51: 401769 | AY51: 0 | AZ51: 0 | BA51: 0 | BB51: 0 | BC51: 0 | BD51: Amanah Saham Bank Simpanan Nasional | BE51: 0
A52: Cash And Equivalent | B52: ASBSN | C52: TradeCrVal | D52: 0 | E52: 0 | F52: 0 | G52: 1 | H52: 401769 | I52: 0 | J52: 0 | K52: 0 | L52: 0 | M52: 0 | N52: 0 | O52: 0 | P52: Amanah Saham BSN | Q52: MYR | R52: 365 | S52: PB | U52: MYR | V52: TBI | AH52: Aznil | AK52: Amanah Saham Bank Simpanan Nasional | AM52: 100528690.3 | AQ52: 1 | AS52: 0 | AT52: 5 | AU52: 0 | AV52: 0 | AW52: 401769 | AX52: 401769 | AY52: 0 | AZ52: 0 | BA52: 0 | BB52: 0 | BC52: 0 | BD52: Amanah Saham Bank Simpanan Nasional | BE52: 0
A53: Cash And Equivalent | B53: ASBSN | C53: MngDb | D53: 0 | E53: 0 | F53: 0 | G53: 1 | H53: 401769 | I53: 0 | J53: 0 | K53: 0 | L53: 0 | M53: 0 | N53: 0 | O53: 0 | P53: Amanah Saham BSN | Q53: MYR | R53: 365 | S53: PB | U53: MYR | V53: TBI | AH53: Aznil | AK53: Amanah Saham Bank Simpanan Nasional | AM53: 100528690.3 | AQ53: 1 | AS53: 0 | AT53: 5 | AU53: 0 | AV53: 0 | AW53: 401769 | AX53: 401769 | AY53: 0 | AZ53: 0 | BA53: 0 | BB53: 0 | BC53: 0 | BD53: Amanah Saham Bank Simpanan Nasional | BE53: 0
A54: Cash And Equivalent | B54: ASBSN | C54: MngCr | D54: 0 | E54: 0 | F54: 0 | G54: 1 | H54: 401769 | I54: 0 | J54: 0 | K54: 0 | L54: 0 | M54: 0 | N54: 0 | O54: 0 | P54: Amanah Saham BSN | Q54: MYR | R54: 365 | S54: PB | U54: MYR | V54: TBI | AH54: Aznil | AK54: Amanah Saham Bank Simpanan Nasional | AM54: 100528690.3 | AQ54: 1 | AS54: 0 | AT54: 5 | AU54: 0 | AV54: 0 | AW54: 401769 | AX54: 401769 | AY54: 0 | AZ54: 0 | BA54: 0 | BB54: 0 | BC54: 0 | BD54: Amanah Saham Bank Simpanan Nasional | BE54: 0
A55: Cash And Equivalent | B55: ASBSN | C55: DivVal | D55: 0 | E55: 254343.5 | F55: 254343.5 | G55: 1 | H55: 401769 | I55: 254343.5 | J55: 0 | K55: 0 | L55: 0 | M55: 0 | N55: 0 | O55: 0 | P55: Amanah Saham BSN | Q55: MYR | R55: 365 | S55: PB | U55: MYR | V55: TBI | AH55: Aznil | AK55: Amanah Saham Bank Simpanan Nasional | AM55: 100528690.3 | AQ55: 1 | AS55: 0 | AT55: 5 | AU55: 0.2530058824 | AV55: 0 | AW55: 401769 | AX55: 401769 | AY55: 0 | AZ55: 0 | BA55: 0 | BB55: 0 | BC55: 0 | BD55: Amanah Saham Bank Simpanan Nasional | BE55: 0
A56: Cash And Equivalent | B56: ASBSN | C56: DivTaxRec | D56: 0 | E56: 148373.52 | F56: 148373.52 | G56: 1 | H56: 401769 | I56: 148373.52 | J56: 0 | K56: 0 | L56: 0 | M56: 0 | N56: 0 | O56: 0 | P56: Amanah Saham BSN | Q56: MYR | R56: 365 | S56: PB | U56: MYR | V56: TBI | AH56: Aznil | AK56: Amanah Saham Bank Simpanan Nasional | AM56: 100528690.3 | AQ56: 1 | AS56: 0 | AT56: 5 | AU56: 0.147593209 | AV56: 0 | AW56: 401769 | AX56: 401769 | AY56: 0 | AZ56: 0 | BA56: 0 | BB56: 0 | BC56: 0 | BD56: Amanah Saham Bank Simpanan Nasional | BE56: 0
A57: Cash And Equivalent | B57: ASBSN | C57: OtherDbVal | D57: 0 | E57: 365.55 | F57: 365.55 | G57: 1 | H57: 401769 | I57: 365.55 | J57: 0 | K57: 0 | L57: 0 | M57: 0 | N57: 0 | O57: 0 | P57: Amanah Saham BSN | Q57: MYR | R57: 365 | S57: PB | U57: MYR | V57: TBI | AH57: Aznil | AK57: Amanah Saham Bank Simpanan Nasional | AM57: 100528690.3 | AQ57: 1 | AS57: 0 | AT57: 5 | AU57: 0.0003636275364 | AV57: 0 | AW57: 401769 | AX57: 401769 | AY57: 0 | AZ57: 0 | BA57: 0 | BB57: 0 | BC57: 0 | BD57: Amanah Saham Bank Simpanan Nasional | BE57: 0
A58: Cash And Equivalent | B58: ASBSN | C58: OtherCrVal | D58: 0 | E58: -64553.86 | F58: -64553.86 | G58: 1 | H58: 401769 | I58: -64553.86 | J58: 0 | K58: 0 | L58: 0 | M58: 0 | N58: 0 | O58: 0 | P58: Amanah Saham BSN | Q58: MYR | R58: 365 | S58: PB | U58: MYR | V58: TBI | AH58: Aznil | AK58: Amanah Saham Bank Simpanan Nasional | AM58: 100528690.3 | AQ58: 1 | AS58: 0 | AT58: 5 | AU58: -0.06421436487 | AV58: 0 | AW58: 401769 | AX58: 401769 | AY58: 0 | AZ58: 0 | BA58: 0 | BB58: 0 | BC58: 0 | BD58: Amanah Saham Bank Simpanan Nasional | BE58: 0
A59: Cash And Equivalent | B59: ASBSN | C59: TaxProvVal | D59: 0 | E59: 0 | F59: 0 | G59: 1 | H59: 401769 | I59: 0 | J59: 0 | K59: 0 | L59: 0 | M59: 0 | N59: 0 | O59: 0 | P59: Amanah Saham BSN | Q59: MYR | R59: 365 | S59: PB | U59: MYR | V59: TBI | AH59: Aznil | AK59: Amanah Saham Bank Simpanan Nasional | AM59: 100528690.3 | AQ59: 1 | AS59: 0 | AT59: 5 | AU59: 0 | AV59: 0 | AW59: 401769 | AX59: 401769 | AY59: 0 | AZ59: 0 | BA59: 0 | BB59: 0 | BC59: 0 | BD59: Amanah Saham Bank Simpanan Nasional | BE59: 0
A60: Cash And Equivalent | B60: ASBSN | C60: DefTaxProvVal | D60: 0 | E60: 0 | F60: 0 | G60: 1 | H60: 401769 | I60: 0 | J60: 0 | K60: 0 | L60: 0 | M60: 0 | N60: 0 | O60: 0 | P60: Amanah Saham BSN | Q60: MYR | R60: 365 | S60: PB | U60: MYR | V60: TBI | AH60: Aznil | AK60: Amanah Saham Bank Simpanan Nasional | AM60: 100528690.3 | AQ60: 1 | AS60: 0 | AT60: 5 | AU60: 0 | AV60: 0 | AW60: 401769 | AX60: 401769 | AY60: 0 | AZ60: 0 | BA60: 0 | BB60: 0 | BC60: 0 | BD60: Amanah Saham Bank Simpanan Nasional | BE60: 0
A61: Cash And Equivalent | B61: ASBSN | C61: ProvDistVal | D61: 0 | E61: -1764607.75 | F61: -1764607.75 | G61: 1 | H61: 401769 | I61: -1764607.75 | J61: 0 | K61: 0 | L61: 0 | M61: 0 | N61: 0 | O61: 0 | P61: Amanah Saham BSN | Q61: MYR | R61: 365 | S61: PB | U61: MYR | V61: TBI | AH61: Aznil | AK61: Amanah Saham Bank Simpanan Nasional | AM61: 100528690.3 | AQ61: 1 | AS61: 0 | AT61: 5 | AU61: -1.755327503 | AV61: 0 | AW61: 401769 | AX61: 401769 | AY61: 0 | AZ61: 0 | BA61: 0 | BB61: 0 | BC61: 0 | BD61: Amanah Saham Bank Simpanan Nasional | BE61: 0
A62: Cash And Equivalent | B62: ASBSN | C62: MngFee_BF | D62: 0 | E62: -128847.23 | F62: -128847.23 | G62: 1 | H62: 401769 | I62: -128847.23 | J62: 0 | K62: 0 | L62: 0 | M62: 0 | N62: 0 | O62: 0 | P62: Amanah Saham BSN | Q62: MYR | R62: 365 | S62: PB | U62: MYR | V62: TBI | AH62: Aznil | AK62: Amanah Saham Bank Simpanan Nasional | AM62: 100528690.3 | AQ62: 1 | AS62: 0 | AT62: 5 | AU62: -0.1281696097 | AV62: 0 | AW62: 401769 | AX62: 401769 | AY62: 0 | AZ62: 0 | BA62: 0 | BB62: 0 | BC62: 0 | BD62: Amanah Saham Bank Simpanan Nasional | BE62: 0
A63: Cash And Equivalent | B63: ASBSN | C63: MngFeeRebate_BF | D63: 0 | E63: 0 | F63: 0 | G63: 1 | H63: 401769 | I63: 0 | J63: 0 | K63: 0 | L63: 0 | M63: 0 | N63: 0 | O63: 0 | P63: Amanah Saham BSN | Q63: MYR | R63: 365 | S63: PB | U63: MYR | V63: TBI | AH63: Aznil | AK63: Amanah Saham Bank Simpanan Nasional | AM63: 100528690.3 | AQ63: 1 | AS63: 0 | AT63: 5 | AU63: 0 | AV63: 0 | AW63: 401769 | AX63: 401769 | AY63: 0 | AZ63: 0 | BA63: 0 | BB63: 0 | BC63: 0 | BD63: Amanah Saham Bank Simpanan Nasional | BE63: 0
A64: Cash And Equivalent | B64: ASBSN | C64: TrusteeFee_BF | D64: 0 | E64: -5153.88 | F64: -5153.88 | G64: 1 | H64: 401769 | I64: -5153.88 | J64: 0 | K64: 0 | L64: 0 | M64: 0 | N64: 0 | O64: 0 | P64: Amanah Saham BSN | Q64: MYR | R64: 365 | S64: PB | U64: MYR | V64: TBI | AH64: Aznil | AK64: Amanah Saham Bank Simpanan Nasional | AM64: 100528690.3 | AQ64: 1 | AS64: 0 | AT64: 5 | AU64: -0.005126775236 | AV64: 0 | AW64: 401769 | AX64: 401769 | AY64: 0 | AZ64: 0 | BA64: 0 | BB64: 0 | BC64: 0 | BD64: Amanah Saham Bank Simpanan Nasional | BE64: 0
A65: Cash And Equivalent | B65: ASBSN | C65: AuditorFee_BF | D65: 0 | E65: -5500 | F65: -5500 | G65: 1 | H65: 401769 | I65: -5500 | J65: 0 | K65: 0 | L65: 0 | M65: 0 | N65: 0 | O65: 0 | P65: Amanah Saham BSN | Q65: MYR | R65: 365 | S65: PB | U65: MYR | V65: TBI | AH65: Aznil | AK65: Amanah Saham Bank Simpanan Nasional | AM65: 100528690.3 | AQ65: 1 | AS65: 0 | AT65: 5 | AU65: -0.005471074956 | AV65: 0 | AW65: 401769 | AX65: 401769 | AY65: 0 | AZ65: 0 | BA65: 0 | BB65: 0 | BC65: 0 | BD65: Amanah Saham Bank Simpanan Nasional | BE65: 0
A66: Cash And Equivalent | B66: ASBSN | C66: CustodianFee_BF | D66: 0 | E66: 0 | F66: 0 | G66: 1 | H66: 401769 | I66: 0 | J66: 0 | K66: 0 | L66: 0 | M66: 0 | N66: 0 | O66: 0 | P66: Amanah Saham BSN | Q66: MYR | R66: 365 | S66: PB | U66: MYR | V66: TBI | AH66: Aznil | AK66: Amanah Saham Bank Simpanan Nasional | AM66: 100528690.3 | AQ66: 1 | AS66: 0 | AT66: 5 | AU66: 0 | AV66: 0 | AW66: 401769 | AX66: 401769 | AY66: 0 | AZ66: 0 | BA66: 0 | BB66: 0 | BC66: 0 | BD66: Amanah Saham Bank Simpanan Nasional | BE66: 0
A67: Cash And Equivalent | B67: ASBSN | C67: BrokerageFee_BF | D67: 0 | E67: 0 | F67: 0 | G67: 1 | H67: 401769 | I67: 0 | J67: 0 | K67: 0 | L67: 0 | M67: 0 | N67: 0 | O67: 0 | P67: Amanah Saham BSN | Q67: MYR | R67: 365 | S67: PB | U67: MYR | V67: TBI | AH67: Aznil | AK67: Amanah Saham Bank Simpanan Nasional | AM67: 100528690.3 | AQ67: 1 | AS67: 0 | AT67: 5 | AU67: 0 | AV67: 0 | AW67: 401769 | AX67: 401769 | AY67: 0 | AZ67: 0 | BA67: 0 | BB67: 0 | BC67: 0 | BD67: Amanah Saham Bank Simpanan Nasional | BE67: 0
A68: Cash And Equivalent | B68: ASBSN | C68: OthVal | D68: 0 | E68: 0 | F68: 0 | G68: 1 | H68: 401769 | I68: 0 | J68: 0 | K68: 0 | L68: 0 | M68: 0 | N68: 0 | O68: 0 | P68: Amanah Saham BSN | Q68: MYR | R68: 365 | S68: PB | U68: MYR | V68: TBI | AH68: Aznil | AK68: Amanah Saham Bank Simpanan Nasional | AM68: 100528690.3 | AQ68: 1 | AS68: 0 | AT68: 5 | AU68: 0 | AV68: 0 | AW68: 401769 | AX68: 401769 | AY68: 0 | AZ68: 0 | BA68: 0 | BB68: 0 | BC68: 0 | BD68: Amanah Saham Bank Simpanan Nasional | BE68: 0
A69: Cash And Equivalent | B69: ASBSN | C69: TaxVal | D69: 0 | E69: 0 | F69: 0 | G69: 1 | H69: 401769 | I69: 0 | J69: 0 | K69: 0 | L69: 0 | M69: 0 | N69: 0 | O69: 0 | P69: Amanah Saham BSN | Q69: MYR | R69: 365 | S69: PB | U69: MYR | V69: TBI | AH69: Aznil | AK69: Amanah Saham Bank Simpanan Nasional | AM69: 100528690.3 | AQ69: 1 | AS69: 0 | AT69: 5 | AU69: 0 | AV69: 0 | AW69: 401769 | AX69: 401769 | AY69: 0 | AZ69: 0 | BA69: 0 | BB69: 0 | BC69: 0 | BD69: Amanah Saham Bank Simpanan Nasional | BE69: 0
A70: Cash And Equivalent | B70: ASBSN | C70: BankVal | D70: 0 | E70: 4564639.13 | F70: 4564639.13 | G70: 1 | H70: 401769 | I70: 4564639.13 | J70: 0 | K70: 0 | L70: 0 | M70: 0 | N70: 0 | O70: 0 | P70: Amanah Saham BSN | Q70: MYR | R70: 365 | S70: PB | U70: MYR | V70: TBI | AH70: Aznil | AK70: Amanah Saham Bank Simpanan Nasional | AM70: 100528690.3 | AQ70: 1 | AS70: 0 | AT70: 5 | AU70: 4.540633242 | AV70: 0 | AW70: 401769 | AX70: 401769 | AY70: 0 | AZ70: 0 | BA70: 0 | BB70: 0 | BC70: 0 | BD70: Amanah Saham Bank Simpanan Nasional | BE70: 0
A71: Cash And Equivalent | B71: ASBSN | C71: BankVal-FX | D71: 0 | E71: 0 | F71: 0 | G71: 1 | H71: 401769 | I71: 0 | J71: 0 | K71: 0 | L71: 0 | M71: 0 | N71: 0 | O71: 0 | P71: Amanah Saham BSN | Q71: MYR | R71: 365 | S71: PB | U71: MYR | V71: TBI | AH71: Aznil | AK71: Amanah Saham Bank Simpanan Nasional | AM71: 100528690.3 | AQ71: 1 | AS71: 0 | AT71: 5 | AU71: 0 | AV71: 0 | AW71: 401769 | AX71: 401769 | AY71: 0 | AZ71: 0 | BA71: 0 | BB71: 0 | BC71: 0 | BD71: Amanah Saham Bank Simpanan Nasional | BE71: 0

Sheet UTF2E (hidden)
G1: UTF COMPLIANCE 2E
D2: UTF COMPLIANCEL RETURNS
D4: =UPPER("Investment in Structured Product of a Single Counter-Party") -> INVESTMENT IN STRUCTURED PRODUCT OF A SINGLE COUNTER-PARTY
D5: TOP 5
A6: =EDATE(EOM,0) -> 2013-04-30
D8: Management Company | F8: =": " & CompanyName -> : Permodalan BSN Berhad
D9: Name of Fund (Category/Type) | F9: =": " & FundName -> : Amanah Saham BSN
D10: Month Ended | F10: =": " & TEXT(EOM,"dd mmm yyyy") -> : 30 Apr 2013
C11: 2007-06-12 | D11: Fund NAV | F11: =": " & InPortfolio!AM2 -> : 100528690.32
D12: Name of Issuer | E12: Rating | F12: Value of Fund's Investments | G12: Value of holding over NAV
F13: (RM '000) | G13: (%)

Sheet UTF2F (hidden)
G1: UTF COMPLIANCE 2F
D2: UTF COMPLIANCEL RETURNS
D4: =UPPER("Aggregate Investments of a Single Issuer/Institution") -> AGGREGATE INVESTMENTS OF A SINGLE ISSUER/INSTITUTION
D5: TOP 5
A6: =EDATE(EOM,0) -> 2013-04-30
D8: Management Company | E8: =": " & CompanyName -> : Permodalan BSN Berhad
D9: Name of Fund (Category/Type) | E9: =": " & FundName -> : Amanah Saham BSN
D10: Month Ended | E10: =": " & TEXT(EOM,"dd mmm yyyy") -> : 30 Apr 2013 | K10: Term | L10: (blank)
C11: 2007-06-12 | D11: Fund NAV | E11: =": " & InPortfolio!AM2 -> : 100528690.32 | K11: qAssetClass | L11: (Multiple Items)
D12: Name of Issuer | E12: Class of Investment | F12: Value of Fund's Investments | G12: Value of holding over NAV
F13: (RM '000) | G13: (%) | M13: Values
D14: =IF(K15="","",K15) -> Tenaga Nasional Berhad | E14: =IF(L15="","",L15) -> Equity | F14: =IF(M15="","",M15/1000) -> 8197.755 | G14: =IF(N15="","",N15) -> 8.154642196 | K14: Row Labels | L14: Class | M14: Sum of MarketValueFC | N14: Sum of fPercNAV
D15: =IF(K16="","",K16) -> Tenaga Nasional Berhad Total | E15: =IF(L16="","",L16) ->  | F15: =IF(M16="","",M16/1000) -> 8197.755 | G15: =IF(N16="","",N16) -> 8.154642196 | K15: Tenaga Nasional Berhad | L15: Equity | M15: 8197755 | N15: 8.154642196
D16: Petronas Chemical Group Bhd | E16: Equity | F16: 6998.201 | G16: 6.961396769 | K16: Tenaga Nasional Berhad Total | M16: 8197755 | N16: 8.154642196
D17: Petronas Chemical Group Bhd Total | F17: 6998.201 | G17: 6.961396769 | K17: Petronas Chemical Group Bhd | L17: Equity | M17: 6998201 | N17: 6.961396769
D18: CIMB Holdings Berhad | E18: Equity | F18: 5572.8 | G18: 5.543492094 | K18: Petronas Chemical Group Bhd Total | M18: 6998201 | N18: 6.961396769
D19: CIMB Holdings Berhad Total | F19: 5572.8 | G19: 5.543492094 | K19: CIMB Holdings Berhad | L19: Equity | M19: 5572800 | N19: 5.543492094
D20: Telekom Malaysia Berhad | E20: Equity | F20: 5244 | G20: 5.216421286 | K20: CIMB Holdings Berhad Total | M20: 5572800 | N20: 5.543492094
D21: Telekom Malaysia Berhad Total | F21: 5244 | G21: 5.216421286 | K21: Telekom Malaysia Berhad | L21: Equity | M21: 5244000 | N21: 5.216421286
D22: MISC BHD | E22: Equity | F22: 4781.176 | G22: 4.756031323 | K22: Telekom Malaysia Berhad Total | M22: 5244000 | N22: 5.216421286
D23: MISC BHD Total | F23: 4781.176 | G23: 4.756031323 | K23: MISC BHD | L23: Equity | M23: 4781176 | N23: 4.756031323
K24: MISC BHD Total | M24: 4781176 | N24: 4.756031323
D79: =IF(K80="","",K80) ->  | E79: =IF(L80="","",L80) ->  | F79: =IF(M80="","",M80/1000) ->  | G79: =IF(N80="","",N80) -> 

Sheet UTF2G (hidden)
G1: UTF COMPLIANCE 2G
D2: UTF COMPLIANCEL RETURNS
D4: =UPPER("Investments in Units/Shares of a Single Collective Investment Scheme") -> INVESTMENTS IN UNITS/SHARES OF A SINGLE COLLECTIVE INVESTMENT SCHEME
D5: TOP 5
A6: =EDATE(EOM,0) -> 2013-04-30
D8: Management Company | F8: =": " & CompanyName -> : Permodalan BSN Berhad
D9: Name of Fund (Category/Type) | F9: =": " & FundName -> : Amanah Saham BSN
D10: Month Ended | F10: =": " & TEXT(EOM,"dd mmm yyyy") -> : 30 Apr 2013
C11: 2007-06-12 | D11: Fund NAV | F11: =": " & InPortfolio!AM2 -> : 100528690.32 | K11: qAssetClass | L11: (Multiple Items)
D12: Name of Collective Investment Scheme | E12: Type of Investment | F12: Value of Fund's Investments | G12: Value of holding over NAV
F13: (RM '000) | G13: (%) | M13: Values
D14: =IF(K15="","",K15) ->  | F14: =IF(M15="","",M15/1000) ->  | G14: =IF(N15="","",N15) ->  | K14: Row Labels | L14: StockTypeDesc | M14: Sum of MarketValueFC | N14: Sum of fPercNAV
F15: =IF(M16="","",M16/1000) ->  | G15: =IF(N16="","",N16) -> 
F16: =IF(M17="","",M17/1000) ->  | G16: =IF(N17="","",N17) -> 
F17: =IF(M18="","",M18/1000) ->  | G17: =IF(N18="","",N18) -> 
F18: =IF(M19="","",M19/1000) ->  | G18: =IF(N19="","",N19) -> 

Sheet UTF2H (hidden)
I1: UTF COMPLIANCE 2H
D2: UTF COMPLIANCEL RETURNS
D4: =UPPER("Investments in Transferable Securities And Money Market Instruments of a Group of Companies") -> INVESTMENTS IN TRANSFERABLE SECURITIES AND MONEY MARKET INSTRUMENTS OF A GROUP OF COMPANIES
D5: TOP 5
A6: =EDATE(EOM,0) -> 2013-04-30
D8: Management Company | E8: =": " & CompanyName -> : Permodalan BSN Berhad
D9: Name of Fund (Category/Type) | E9: =": " & FundName -> : Amanah Saham BSN
D10: Month Ended | E10: =": " & TEXT(EOM,"dd mmm yyyy") -> : 30 Apr 2013
C11: 2007-06-12 | D11: Fund NAV (RM) | E11: =": " & InPortfolio!AM2 -> : 100528690.32 | M11: qAssetClass | N11: EQT
D12: Name of Group | E12: Name of Issuer within the Group | F12: Class of Security | G12: Type of Investment | H12: Value of Fund's Investments | I12: Value of holding over NAV
H13: (RM '000) | I13: (%) | Q13: Values
D14: =IF(M15="","",M15) -> PETRONAS | E14: =IF(N15="","",N15) -> Petronas Chemical Group Bhd | F14: =IF(O15="","",O15) -> Equity | G14: =IF(P15="","",P15) -> Ordinary | H14: =IF(Q15="","",Q15/1000) -> 6998.201 | I14: =IF(R15="","",R15) -> 6.961396769 | M14: IssuerGrpName | N14: IssuerName | O14: Class | P14: StockTypeDesc | Q14: Sum of MarketValueFC | R14: Sum of fPercNAV
D15: =IF(M16="","",M16) ->  | E15: =IF(N16="","",N16) -> MISC BHD | F15: =IF(O16="","",O16) -> Equity | G15: =IF(P16="","",P16) -> Ordinary | H15: =IF(Q16="","",Q16/1000) -> 4781.176 | I15: =IF(R16="","",R16) -> 4.756031323 | M15: PETRONAS | N15: Petronas Chemical Group Bhd | O15: Equity | P15: Ordinary | Q15: 6998201 | R15: 6.961396769
E16: Malaysia Marine And Heavy Engineering Holdings Bhd | F16: Equity | G16: Ordinary | H16: 3402.33 | I16: 3.38443681 | N16: MISC BHD | O16: Equity | P16: Ordinary | Q16: 4781176 | R16: 4.756031323
E17: Petronas Gas Berhad | F17: Equity | G17: Ordinary | H17: 132.124 | I17: 0.1314291468 | N17: Malaysia Marine And Heavy Engineering Holdings Bhd | O17: Equity | P17: Ordinary | Q17: 3402330 | R17: 3.38443681
D18: PETRONAS Total | H18: 15313.831 | I18: 15.23329405 | N18: Petronas Gas Berhad | O18: Equity | P18: Ordinary | Q18: 132124 | R18: 0.1314291468
D19: N/A | E19: SAPURAKENCANA PETROLEUM BHD | F19: Equity | G19: Ordinary | H19: 2734.8 | I19: 2.720417416 | M19: PETRONAS Total | Q19: 15313831 | R19: 15.23329405
E20: Malayan Flour Mills Bhd | F20: Equity | G20: Ordinary | H20: 2641.92 | I20: 2.628025882 | M20: N/A | N20: SAPURAKENCANA PETROLEUM BHD | O20: Equity | P20: Ordinary | Q20: 2734800 | R20: 2.720417416
E21: Oriental Holdings Bhd | F21: Equity | G21: Ordinary | H21: 1035.702 | I21: 1.030255141 | N21: Malayan Flour Mills Bhd | O21: Equity | P21: Ordinary | Q21: 2641920 | R21: 2.628025882
E22: Ta Ann Holdings Berhad | F22: Equity | G22: Ordinary | H22: 963.24 | I22: 0.9581742256 | N22: Oriental Holdings Bhd | O22: Equity | P22: Ordinary | Q22: 1035702 | R22: 1.030255141
E23: Dialog Group Bhd | F23: Equity | G23: Ordinary | H23: 948 | I23: 0.9430143743 | N23: Ta Ann Holdings Berhad | O23: Equity | P23: Ordinary | Q23: 963240 | R23: 0.9581742256
D24: N/A Total | H24: 8323.662 | I24: 8.279887039 | N24: Dialog Group Bhd | O24: Equity | P24: Ordinary | Q24: 948000 | R24: 0.9430143743
D25: TENAGA | E25: Tenaga Nasional Berhad | F25: Equity | G25: Ordinary | H25: 8197.755 | I25: 8.154642196 | M25: N/A Total | Q25: 8323662 | R25: 8.279887039
D26: TENAGA Total | H26: 8197.755 | I26: 8.154642196 | M26: TENAGA | N26: Tenaga Nasional Berhad | O26: Equity | P26: Ordinary | Q26: 8197755 | R26: 8.154642196
D27: COMMERZ | E27: CIMB Holdings Berhad | F27: Equity | G27: Ordinary | H27: 5572.8 | I27: 5.543492094 | M27: TENAGA Total | Q27: 8197755 | R27: 8.154642196
D28: COMMERZ Total | H28: 5572.8 | I28: 5.543492094 | M28: COMMERZ | N28: CIMB Holdings Berhad | O28: Equity | P28: Ordinary | Q28: 5572800 | R28: 5.543492094
D29: Telekom Malaysia | E29: Telekom Malaysia Berhad | F29: Equity | G29: Ordinary | H29: 5244 | I29: 5.216421286 | M29: COMMERZ Total | Q29: 5572800 | R29: 5.543492094
D30: Telekom Malaysia Total | H30: 5244 | I30: 5.216421286 | M30: Telekom Malaysia | N30: Telekom Malaysia Berhad | O30: Equity | P30: Ordinary | Q30: 5244000 | R30: 5.216421286
D31: Digi | E31: Digi.Com Berhad | F31: Equity | G31: Ordinary | H31: 4408 | I31: 4.384817892 | M31: Telekom Malaysia Total | Q31: 5244000 | R31: 5.216421286
D32: Digi Total | H32: 4408 | I32: 4.384817892 | M32: Digi | N32: Digi.Com Berhad | O32: Equity | P32: Ordinary | Q32: 4408000 | R32: 4.384817892
D33: Bursa Malaysia | E33: Bursa Malaysia Berhad | F33: Equity | G33: Ordinary | H33: 4290 | I33: 4.267438466 | M33: Digi Total | Q33: 4408000 | R33: 4.384817892
D34: Bursa Malaysia Total | H34: 4290 | I34: 4.267438466 | M34: Bursa Malaysia | N34: Bursa Malaysia Berhad | O34: Equity | P34: Ordinary | Q34: 4290000 | R34: 4.267438466
D35: IOI | E35: IOI Corporation Berhad | F35: Equity | G35: Ordinary | H35: 4200.05 | I35: 4.177961522 | M35: Bursa Malaysia Total | Q35: 4290000 | R35: 4.267438466
D36: IOI Total | H36: 4200.05 | I36: 4.177961522 | M36: IOI | N36: IOI Corporation Berhad | O36: Equity | P36: Ordinary | Q36: 4200050 | R36: 4.177961522
D37: RHB | E37: Rhb Capital Berhad | F37: Equity | G37: Ordinary | H37: 3688.8 | I37: 3.669400236 | M37: IOI Total | Q37: 4200050 | R37: 4.177961522
D38: RHB Total | H38: 3688.8 | I38: 3.669400236 | M38: RHB | N38: Rhb Capital Berhad | O38: Equity | P38: Ordinary | Q38: 3688800 | R38: 3.669400236
D39: MAXIS | E39: MAXIS BHD | F39: Equity | G39: Ordinary | H39: 2875.028 | I39: 2.859907944 | M39: RHB Total | Q39: 3688800 | R39: 3.669400236
D40: MAXIS Total | H40: 2875.028 | I40: 2.859907944 | M40: MAXIS | N40: MAXIS BHD | O40: Equity | P40: Ordinary | Q40: 2875028 | R40: 2.859907944
D41: IJM | E41: IJM Corporation Berhad | F41: Equity | G41: Ordinary | H41: 1635 | I41: 1.626401373 | M41: MAXIS Total | Q41: 2875028 | R41: 2.859907944
E42: RB Land Holdings Bhd | F42: Equity | G42: Ordinary | H42: 1032 | I42: 1.02657261 | M42: IJM | N42: IJM Corporation Berhad | O42: Equity | P42: Ordinary | Q42: 1635000 | R42: 1.626401373
D43: IJM Total | H43: 2667 | I43: 2.652973983 | N43: RB Land Holdings Bhd | O43: Equity | P43: Ordinary | Q43: 1032000 | R43: 1.02657261
D44: WCT | E44: Wct Engineering Berhad | F44: Equity | G44: Ordinary | H44: 2511.6 | I44: 2.498391247 | M44: IJM Total | Q44: 2667000 | R44: 2.652973983
D45: WCT Total | H45: 2511.6 | I45: 2.498391247 | M45: WCT | N45: Wct Engineering Berhad | O45: Equity | P45: Ordinary | Q45: 2511600 | R45: 2.498391247
D46: PETRA | E46: Petra Perdana Berhad | F46: Equity | G46: Ordinary | H46: 1911 | I46: 1.900949862 | M46: WCT Total | Q46: 2511600 | R46: 2.498391247
D47: PETRA Total | H47: 1911 | I47: 1.900949862 | M47: PETRA | N47: Petra Perdana Berhad | O47: Equity | P47: Ordinary | Q47: 1911000 | R47: 1.900949862
D48: Kulim Berhad | E48: Kulim (Malaysia) Berhad | F48: Equity | G48: Ordinary | H48: 1682.6 | I48: 1.67375104 | M48: PETRA Total | Q48: 1911000 | R48: 1.900949862
D49: Kulim Berhad Total | H49: 1682.6 | I49: 1.67375104 | M49: Kulim Berhad | N49: Kulim (Malaysia) Berhad | O49: Equity | P49: Ordinary | Q49: 1682600 | R49: 1.67375104
D50: MAYBANK | E50: Malayan Banking Berhad | F50: Equity | G50: Ordinary | H50: 1635.4 | I50: 1.62679927 | M50: Kulim Berhad Total | Q50: 1682600 | R50: 1.67375104
D51: MAYBANK Total | H51: 1635.4 | I51: 1.62679927 | M51: MAYBANK | N51: Malayan Banking Berhad | O51: Equity | P51: Ordinary | Q51: 1635400 | R51: 1.62679927
D52: SPSETIA | E52: S P Setia Berhad | F52: Equity | G52: Ordinary | H52: 1608.67 | I52: 1.600209845 | M52: MAYBANK Total | Q52: 1635400 | R52: 1.62679927
D53: SPSETIA Total | H53: 1608.67 | I53: 1.600209845 | M53: SPSETIA | N53: S P Setia Berhad | O53: Equity | P53: Ordinary | Q53: 1608670 | R53: 1.600209845
D54: SIME DARBY | E54: Sime Darby Bhd | F54: Equity | G54: Ordinary | H54: 1604.8 | I54: 1.596360198 | M54: SPSETIA Total | Q54: 1608670 | R54: 1.600209845
D55: SIME DARBY Total | H55: 1604.8 | I55: 1.596360198 | M55: SIME DARBY | N55: Sime Darby Bhd | O55: Equity | P55: Ordinary | Q55: 1604800 | R55: 1.596360198
D56: British American Tobacco | E56: British American Tobacco (Malaysia) Bhd | F56: Equity | G56: Ordinary | H56: 1393.04 | I56: 1.385713865 | M56: SIME DARBY Total | Q56: 1604800 | R56: 1.596360198
D57: British American Tobacco Total | H57: 1393.04 | I57: 1.385713865 | M57: British American Tobacco | N57: British American Tobacco (Malaysia) Bhd | O57: Equity | P57: Ordinary | Q57: 1393040 | R57: 1.385713865
D58: Lembaga Tabung Haji | E58: TH Plantation Berhad | F58: Equity | G58: Ordinary | H58: 1204.5 | I58: 1.198165415 | M58: British American Tobacco Total | Q58: 1393040 | R58: 1.385713865
D59: Lembaga Tabung Haji Total | H59: 1204.5 | I59: 1.198165415 | M59: Lembaga Tabung Haji | N59: TH Plantation Berhad | O59: Equity | P59: Ordinary | Q59: 1204500 | R59: 1.198165415
D60: CBIP | E60: CB Industrial Product Holding Berhad | F60: Equity | G60: Ordinary | H60: 1082 | I60: 1.076309655 | M60: Lembaga Tabung Haji Total | Q60: 1204500 | R60: 1.198165415
D61: CBIP Total | H61: 1082 | I61: 1.076309655 | M61: CBIP | N61: CB Industrial Product Holding Berhad | O61: Equity | P61: Ordinary | Q61: 1082000 | R61: 1.076309655
D62: AXIATA GROUP | E62: AXIATA GROUP BERHAD | F62: Equity | G62: Ordinary | H62: 1015.5 | I62: 1.010159385 | M62: CBIP Total | Q62: 1082000 | R62: 1.076309655
D63: AXIATA GROUP Total | H63: 1015.5 | I63: 1.010159385 | M63: AXIATA GROUP | N63: AXIATA GROUP BERHAD | O63: Equity | P63: Ordinary | Q63: 1015500 | R63: 1.010159385
D64: Boustead | E64: Boustead Holdings Bhd | F64: Equity | G64: Ordinary | H64: 921.6 | I64: 0.9167532145 | M64: AXIATA GROUP Total | Q64: 1015500 | R64: 1.010159385
D65: Boustead Total | H65: 921.6 | I65: 0.9167532145 | M65: Boustead | N65: Boustead Holdings Bhd | O65: Equity | P65: Ordinary | Q65: 921600 | R65: 0.9167532145
D66: Bank Islam Berhad | E66: Bank Islam Malaysia Bhd | F66: Equity | G66: Ordinary | H66: 610.038 | I66: 0.6068297499 | M66: Boustead Total | Q66: 921600 | R66: 0.9167532145
D67: Bank Islam Berhad Total | H67: 610.038 | I67: 0.6068297499 | M67: Bank Islam Berhad | N67: Bank Islam Malaysia Bhd | O67: Equity | P67: Ordinary | Q67: 610038 | R67: 0.6068297499
D68: YTL & SONS | E68: YTL Power International Berhad | F68: Equity | G68: Ordinary | H68: 453 | I68: 0.4506176282 | M68: Bank Islam Berhad Total | Q68: 610038 | R68: 0.6068297499
D69: YTL & SONS Total | H69: 453 | I69: 0.4506176282 | M69: YTL & SONS | N69: YTL Power International Berhad | O69: Equity | P69: Ordinary | Q69: 453000 | R69: 0.4506176282
D70: MRCB | E70: M'sian Resources Corporation Bhd | F70: Equity | G70: Ordinary | H70: 442.74 | I70: 0.4404115866 | M70: YTL & SONS Total | Q70: 453000 | R70: 0.4506176282
D71: MRCB Total | H71: 442.74 | I71: 0.4404115866 | M71: MRCB | N71: M'sian Resources Corporation Bhd | O71: Equity | P71: Ordinary | Q71: 442740 | R71: 0.4404115866
D72: BK | E72: Kl Kepong Berhad | F72: Equity | G72: Ordinary | H72: 431.2 | I72: 0.4289322766 | M72: MRCB Total | Q72: 442740 | R72: 0.4404115866
D73: BK Total | H73: 431.2 | I73: 0.4289322766 | M73: BK | N73: Kl Kepong Berhad | O73: Equity | P73: Ordinary | Q73: 431200 | R73: 0.4289322766
D74: Masterskill Education Group Bhd | E74: Masterskill Education Group Bhd | F74: Equity | G74: Ordinary | H74: 307.4 | I74: 0.305783353 | M74: BK Total | Q74: 431200 | R74: 0.4289322766
D75: Masterskill Education Group Bhd Total | H75: 307.4 | I75: 0.305783353 | M75: Masterskill Education Group Bhd | N75: Masterskill Education Group Bhd | O75: Equity | P75: Ordinary | Q75: 307400 | R75: 0.305783353
D76: PUNCAK | E76: Puncak Niaga Holdings Berhad | F76: Equity | G76: Ordinary | H76: 205.2 | I76: 0.2041208329 | M76: Masterskill Education Group Bhd Total | Q76: 307400 | R76: 0.305783353
D77: PUNCAK Total | H77: 205.2 | I77: 0.2041208329 | M77: PUNCAK | N77: Puncak Niaga Holdings Berhad | O77: Equity | P77: Ordinary | Q77: 205200 | R77: 0.2041208329
D78: KNM | E78: KNM Group Bhd | F78: Equity | G78: Ordinary | H78: 60.46875 | I78: 0.06015073887 | M78: PUNCAK Total | Q78: 205200 | R78: 0.2041208329
D79: =IF(M80="","",M80) -> KNM Total | E79: =IF(N80="","",N80) ->  | F79: =IF(O80="","",O80) ->  | G79: =IF(P80="","",P80) ->  | H79: =IF(Q80="","",Q80/1000) -> 60.46875 | I79: =IF(R80="","",R80) -> 0.06015073887 | M79: KNM | N79: KNM Group Bhd | O79: Equity | P79: Ordinary | Q79: 60468.75 | R79: 0.06015073887
M80: KNM Total | Q80: 60468.75 | R80: 0.06015073887
D143: =IF(M144="","",M144) ->  | E143: =IF(N144="","",N144) ->  | F143: =IF(O144="","",O144) ->  | G143: =IF(P144="","",P144) ->  | H143: =IF(Q144="","",Q144/1000) ->  | I143: =IF(R144="","",R144) -> 

Sheet UTF3A (hidden)
I1: UTF COMPLIANCE 3A
D2: UTF COMPLIANCEL RETURNS
N3: qAssetClass | O3: EQT
D4: =UPPER("Concentration of Investment in Equities/Warrants of a Single Issuer") -> CONCENTRATION OF INVESTMENT IN EQUITIES/WARRANTS OF A SINGLE ISSUER
D5: TOP 5 | R5: Values
A6: =EDATE(EOM,0) -> 2013-04-30 | N6: Row Labels | O6: StockName | P6: Class | Q6: StockTypeDesc | R6: Sum of IssuedSize | S6: Sum of UnitFaceValue | T6: Sum of PercHolding
N7: Malayan Flour Mills Bhd | O7: MFLOUR | P7: Equity | Q7: Ordinary | R7: 538193.5484 | S7: 2064 | T7: 0.3835051546
D8: Management Company | F8: =": " & CompanyName -> : Permodalan BSN Berhad | N8: Muhibbah Engineering (M) Bhd | O8: MUHIBAH | P8: Equity | Q8: Ordinary | R8: 409020.979 | S8: 838 | T8: 0.2048794666
D9: Name of Fund (Category/Type) | F9: =": " & FundName -> : Amanah Saham BSN | N9: Petra Perdana Berhad | O9: PERDANA | P9: Equity | Q9: Ordinary | R9: 731445.7831 | S9: 1300 | T9: 0.1777301927
D10: Month Ended | F10: =": " & TEXT(EOM,"dd mmm yyyy") -> : 30 Apr 2013 | N10: CB Industrial Product Holding Berhad | O10: CBIP | P10: Equity | Q10: Ordinary | R10: 272012.012 | S10: 432.8 | T10: 0.1591106204
D11: Name of Issuer | E11: Class of Investment | F11: Type of Investment | G11: Securities in Issue | H11: Securities held by fund | I11: Holding of security over security in issue | N11: Masterskill Education Group Bhd | O11: MEGB | P11: Equity | Q11: Ordinary | R11: 409866.6667 | S11: 530 | T11: 0.1293103448
G12: ('000 units) | H12: ('000 units) | I12: (%)
D13: =IF(N7="","",N7) -> Malayan Flour Mills Bhd | E13: =IF(P7="","",P7) -> Equity | F13: Ordinary | G13: 538193.5484 | H13: 2064 | I13: 0.3835051546
D14: =IF(N8="","",N8) -> Muhibbah Engineering (M) Bhd | E14: Equity | F14: Ordinary | G14: 409020.979 | H14: 838 | I14: 0.2048794666
D15: =IF(N9="","",N9) -> Petra Perdana Berhad | E15: Equity | F15: Ordinary | G15: 731445.7831 | H15: 1300 | I15: 0.1777301927
D16: =IF(N10="","",N10) -> CB Industrial Product Holding Berhad | E16: Equity | F16: Ordinary | G16: 272012.012 | H16: 432.8 | I16: 0.1591106204
D17: =IF(N11="","",N11) -> Masterskill Education Group Bhd | E17: Equity | F17: Ordinary | G17: 409866.6667 | H17: 530 | I17: 0.1293103448

Sheet UTF3B (hidden)
H1: UTF COMPLIANCE 3B
D2: UTF COMPLIANCEL RETURNS
D4: =UPPER("Concentration of Investment in Debentures of a Single Issuer") -> CONCENTRATION OF INVESTMENT IN DEBENTURES OF A SINGLE ISSUER
D5: TOP 5
A6: =EDATE(EOM,0) -> 2013-04-30
D8: Management Company | E8: =": " & CompanyName -> : Permodalan BSN Berhad
D9: Name of Fund (Category/Type) | E9: =": " & FundName -> : Amanah Saham BSN | L9: qAssetClass | M9: BND
D10: Month Ended | E10: =": " & TEXT(EOM,"dd mmm yyyy") -> : 30 Apr 2013 | L10: qBondType | M10: (Multiple Items)
D11: Name of Issuer | E11: Type of Investment | F11: Securities in Issue | G11: Securities held by fund | H11: Holding of security over security in issue
F12: ('000 units) | G12: ('000 units) | H12: (%) | O12: Values
D13: =IF(L14="","",L14) ->  | E13: =IF(N14="","",N14) ->  | L13: Row Labels | M13: StockName | N13: StockTypeDesc | O13: Sum of IssuedSize | P13: Sum of UnitFaceValue | Q13: Sum of PercHolding
D14: =IF(L15="","",L15) -> 
D15: =IF(L16="","",L16) -> 
D16: =IF(L17="","",L17) -> 
D17: =IF(L18="","",L18) -> 

Sheet UTF3C (hidden)
H1: UTF COMPLIANCE 3C
D2: UTF COMPLIANCEL RETURNS
D4: =UPPER("Concentration of Investment in Money Market Instruments of a Single Issuer") -> CONCENTRATION OF INVESTMENT IN MONEY MARKET INSTRUMENTS OF A SINGLE ISSUER
D5: TOP 5
A6: =EDATE(EOM,0) -> 2013-04-30
D8: Management Company | E8: =": " & CompanyName -> : Permodalan BSN Berhad
D9: Name of Fund (Category/Type) | E9: =": " & FundName -> : Amanah Saham BSN | K9: qAssetClass | L9: BND
D10: Month Ended | E10: =": " & TEXT(EOM,"dd mmm yyyy") -> : 30 Apr 2013 | K10: qBondType | L10: 6
D11: Name of Institution | E11: Type of Investment | F11: Instruments in Issue | G11: Instruments held by fund | H11: Holding of security over security in issue
F12: (RM '000 ) | G12: (RM '000 ) | H12: (%) | N12: Values
D13: =IF(K14="","",K14) -> Sabah Development Bank Bhd | E13: =IF(M14="","",M14) -> Commercial Paper | F13: 220000 | G13: 4000 | H13: 3.636363636 | K13: Row Labels | L13: StockName | M13: StockTypeDesc | N13: Sum of IssuedSize | O13: Sum of UnitFaceValue | P13: Sum of PercHolding
D14: =IF(K15="","",K15) ->  | E14: Commercial Paper | F14: 320000 | G14: 4000 | H14: 2.5 | K14: Sabah Development Bank Bhd | L14: CCP RA130112 | M14: Commercial Paper | N14: 220000 | O14: 4000 | P14: 3.636363636
D15: =IF(K16="","",K16) ->  | L15: CCP RA130120 | M15: Commercial Paper | N15: 320000 | O15: 4000 | P15: 2.5
D16: =IF(K17="","",K17) -> 
D17: =IF(K18="","",K18) -> 

Sheet UTF3D (hidden)
H1: UTF COMPLIANCE 3D
D2: UTF COMPLIANCEL RETURNS
D4: =UPPER("Concentration of Investment in Collective Investment Scheme of a Single Issuer") -> CONCENTRATION OF INVESTMENT IN COLLECTIVE INVESTMENT SCHEME OF A SINGLE ISSUER
D5: TOP 5
A6: =EDATE(EOM,0) -> 2013-04-30
D8: Management Company | E8: =": " & CompanyName -> : Permodalan BSN Berhad | K8: qAssetClass | L8: (Multiple Items)
D9: Name of Fund (Category/Type) | E9: =": " & FundName -> : Amanah Saham BSN
D10: Month Ended | E10: =": " & TEXT(EOM,"dd mmm yyyy") -> : 30 Apr 2013 | N10: Values
D11: Name of Collective Investment Scheme | E11: Type of Investment | F11: Unit/Shares in Issue | G11: Unit/Shares held by fund | H11: Holding of security over security in issue | K11: Row Labels | L11: StockName | M11: StockTypeDesc | N11: Sum of IssuedSize | O11: Sum of UnitFaceValue | P11: Sum of PercHolding
F12: ('000 units) | G12: ('000 units) | H12: (%)
D13: =IF(K12="","",K12) ->  | E13: =IF(M12="","",M12) -> 
D14: =IF(K13="","",K13) -> 
D15: =IF(K14="","",K14) -> 
D16: =IF(K15="","",K15) -> 
D17: =IF(K16="","",K16) -> 

Sheet UTF4A (hidden)
G1: UTF COMPLIANCE 4A
D2: UTF COMPLIANCEL RETURNS
D4: =UPPER("Investment in Unlisted Securities") -> INVESTMENT IN UNLISTED SECURITIES
A6: =EDATE(EOM,0) -> 2013-04-30
D8: Management Company | F8: =": " & CompanyName -> : Permodalan BSN Berhad
D9: Name of Fund (Category/Type) | F9: =": " & FundName -> : Amanah Saham BSN
D10: Month Ended | F10: =": " & TEXT(EOM,"dd mmm yyyy") -> : 30 Apr 2013
C11: 2007-06-12 | D11: Fund NAV (RM) | F11: =": " & InPortfolio!AM2 -> : 100528690.32
D12: Name of Issuer | E12: Type of Investment | F12: Value of Fund's Investments | G12: Value of holding over NAV
F13: (RM '000) | G13: (%)

Sheet UTF5 (hidden)
H1: UTF COMPLIANCE 5
D2: UTF COMPLIANCEL RETURNS
D4: =UPPER("Investments in Permitted Investments of a Money Market Fund") -> INVESTMENTS IN PERMITTED INVESTMENTS OF A MONEY MARKET FUND
D5: TOP 10
A6: =EDATE(EOM,0) -> 2013-04-30
D8: Management Company | G8: =": " & CompanyName -> : Permodalan BSN Berhad
D9: Name of Fund (Category/Type) | G9: =": " & FundName -> : Amanah Saham BSN
D10: Month Ended | G10: =": " & TEXT(EOM,"dd mmm yyyy") -> : 30 Apr 2013
C11: 2007-06-12 | D11: Fund NAV (RM) | G11: =": " & InPortfolio!AM2 -> : 100528690.32
D12: Name of Issuer | E12: Class of Investment | F12: Type of Investment | G12: Value of Fund's Investments
G13: Remaining maturity period of not more than 365 days (RM '000) | H13: Remaining maturity period of more than 365 days but fewer than 732 days (RM'000)

Sheet UTF6 (hidden)
G1: UTF COMPLIANCE 6
D2: UTF COMPLIANCEL RETURNS
D4: =UPPER("Holding of Permitted Investments for a Capital Protected Fund") -> HOLDING OF PERMITTED INVESTMENTS FOR A CAPITAL PROTECTED FUND
A6: =EDATE(EOM,0) -> 2013-04-30
D8: Management Company | F8: =": " & CompanyName -> : Permodalan BSN Berhad
D9: Name of Fund (Category/Type) | F9: =": " & FundName -> : Amanah Saham BSN
D10: Month Ended | F10: =": " & TEXT(EOM,"dd mmm yyyy") -> : 30 Apr 2013
C11: 2007-06-12 | D11: Fund NAV | F11: =": " & InPortfolio!AM2 -> : 100528690.32
D12: Name of Issuer | E12: Class of Security | F12: Type | G12: Value of Fund's Investments
G13: (RM '000)

Sheet UTF7 (hidden)
F1: UTF COMPLIANCE 7
D2: UTF COMPLIANCEL RETURNS
D4: =UPPER("Use of Brokers/Dealers") -> USE OF BROKERS/DEALERS
A6: =EDATE(EOM,0) -> 2013-04-30
D8: Management Company | E8: =": " & CompanyName -> : Permodalan BSN Berhad
D9: Name of Fund (Category/Type) | E9: =": " & FundName -> : Amanah Saham BSN
D10: Financial Year Ended | E10: =": " & TEXT(EOM,"dd mmm yyyy") -> : 30 Apr 2013
D11: Top Ten Brokers/ Dealer | E11: Transaction Value for the Year | F11: % Fund's Dealings
E12: (RM '000) | I12: Row Labels | J12: Sum of SCNetProceed
D13: =IF(I13="","",I13) ->  | E13: =IF(J13="","",J13/1000) ->  | F13: =IF(K13="","",K13) ->  | K13: =IF(J23=0,"",(J13/J23)*100) -> 
D14: =IF(I14="","",I14) ->  | E14: =IF(J14="","",J14/1000) ->  | F14: =IF(K14="","",K14) ->  | K14: =IF(J23=0,"",(J14/J23)*100) -> 
K15: =IF(J23=0,"",(J15/J23)*100) -> 
K16: =IF(J23=0,"",(J16/J23)*100) -> 
K17: =IF(J23=0,"",(J17/J23)*100) -> 
K18: =IF(J23=0,"",(J18/J23)*100) -> 
K19: =IF(J23=0,"",(J19/J23)*100) -> 
K20: =IF(J23=0,"",(J20/J23)*100) -> 
K21: =IF(J23=0,"",(J21/J23)*100) -> 
K22: =IF(J23=0,"",(J22/J23)*100) -> 
D23: TOTAL | E23: =IF(SUM(E13:E22)=0,"",SUM(E13:E22)) ->  | F23: =IF(SUM(F13:F22)=0,"",SUM(F13:F22)) ->  | J23: =SUM(J13:J22) -> 0 | K23: =IF(J23=0,"",(J23/J23)*100) -> 

Sheet InPos (hidden)
A1: qAssetClass | B1: qStockCode | C1: StockDesc | D1: UnitFaceValue | E1: CostSC | F1: CostFC | G1: MarketValueSC | H1: MarketValueFC | I1: SG1 | J1: MaturityDate | K1: ExchangeCountry | L1: IssuerName | M1: IssuerGrpName | N1: VetoValues | O1: IssuedSize | P1: Coupon | Q1: MarketValue | R1: RatingUsed | S1: Description | T1: StockTypeDesc | U1: StockName | V1: StockCountry | W1: List | X1: qBondType | Y1: Class | Z1: PercHolding | AA1: =IF(LEN(L1)>5,L1& " - (" & B1& ") ","") -> IssuerName - (qStockCode) | AB1: =L1&I1 -> IssuerNameSG1 | AC1: =M1&L1&B1 -> IssuerGrpNameIssuerNameqStockCode | AD1: =IF(AND(COUNTIF($M:$M,M1)>0,A1<>"CSH",M1<>"N/A"),M1,"") -> IssuerGrpName | AE1: =A1&L1 -> qAssetClassIssuerName | AF1: =IF(AND(AD1<>"",COUNTIF(L:L,L1)<>COUNTIF($AD:$AD,AD1)),AD1,"") -> 
A2: BND | B2: RA130112 | C2: SABAH DEVELOPMENT BANK BERHAD CP | D2: 2000 | E2: 1994509.59 | F2: 1994509.59 | G2: 1997071.78 | H2: 1997071.78 | I2: N/A | J2: 41410 | K2: Malaysia | L2: Sabah Development Bank Bhd | M2: N/A | O2: 110000 | P2: 0 | Q2: 1997 | R2: MARC1 | S2: Not Applicable | T2: Commercial Paper | U2: CCP RA130112 | V2: Malaysia | W2: Unlisted | X2: 6 | Y2: Bond | Z2: 1.818181818 | AA2: =IF(LEN(L2)>5,L2& " - (" & B2& ") ","") -> Sabah Development Bank Bhd - (RA130112) | AB2: =L2&I2 -> Sabah Development Bank BhdN/A | AC2: =M2&L2&B2 -> N/ASabah Development Bank BhdRA130112 | AD2: =IF(AND(COUNTIF($M:$M,M2)>0,A2<>"CSH",M2<>"N/A"),M2,"") ->  | AE2: =A2&L2 -> BNDSabah Development Bank Bhd | AF2: =IF(AND(AD2<>"",COUNTIF(L:L,L2)<>COUNTIF($AD:$AD,AD2)),AD2,"") -> 
A3: BND | B3: RA130112 | C3: SABAH DEVELOPMENT BANK BERHAD CP | D3: 2000 | E3: 1994509.59 | F3: 1994509.59 | G3: 1997071.78 | H3: 1997071.78 | I3: N/A | J3: 41410 | K3: Malaysia | L3: Sabah Development Bank Bhd | M3: N/A | O3: 110000 | P3: 0 | Q3: 1997 | R3: P1 | S3: Not Applicable | T3: Commercial Paper | U3: CCP RA130112 | V3: Malaysia | W3: Unlisted | X3: 6 | Y3: Bond | Z3: 1.818181818
A4: BND | B4: RA130120 | C4: SABAH DEVELOPMENT BANK BERHAD CP | D4: 2000 | E4: 1994526.03 | F4: 1994526.03 | G4: 1995985.75 | H4: 1995985.75 | I4: N/A | J4: 41416 | K4: Malaysia | L4: Sabah Development Bank Bhd | M4: N/A | O4: 160000 | P4: 0 | Q4: 1996 | R4: MARC1 | S4: Not Applicable | T4: Commercial Paper | U4: CCP RA130120 | V4: Malaysia | W4: Unlisted | X4: 6 | Y4: Bond | Z4: 1.25
A5: BND | B5: RA130120 | C5: SABAH DEVELOPMENT BANK BERHAD CP | D5: 2000 | E5: 1994526.03 | F5: 1994526.03 | G5: 1995985.75 | H5: 1995985.75 | I5: N/A | J5: 41416 | K5: Malaysia | L5: Sabah Development Bank Bhd | M5: N/A | O5: 160000 | P5: 0 | Q5: 1996 | R5: P1 | S5: Not Applicable | T5: Commercial Paper | U5: CCP RA130120 | V5: Malaysia | W5: Unlisted | X5: 6 | Y5: Bond | Z5: 1.25
A6: CSH | B6: RPI*MYR*BKRB | C6: Not Applicable | D6: 374 | E6: 374000 | F6: 374000 | G6: 375931.48 | H6: 375931.48 | I6: N/A | J6: 41429 | K6: Malaysia | L6: Bank Rakyat Berhad | M6: N/A | O6: 0 | Q6: 376 | S6: Not Applicable | U6: RPI*MYR*BKRB | V6: Malaysia | W6: Unlisted | Y6: Placements of Deposits | Z6: 0
A7: CSH | B7: RPI*MYR*BKRB | C7: Not Applicable | D7: 130 | E7: 130000 | F7: 130000 | G7: 130254.66 | H7: 130254.66 | I7: N/A | J7: 41464 | K7: Malaysia | L7: Bank Rakyat Berhad | M7: N/A | O7: 0 | Q7: 130 | S7: Not Applicable | U7: RPI*MYR*BKRB | V7: Malaysia | W7: Unlisted | Y7: Placements of Deposits | Z7: 0
A8: CSH | B8: RPI*MYR*BKRB | C8: Not Applicable | D8: 308 | E8: 308000 | F8: 308000 | G8: 308411.37 | H8: 308411.37 | I8: N/A | J8: 41471 | K8: Malaysia | L8: Bank Rakyat Berhad | M8: N/A | O8: 0 | Q8: 308 | S8: Not Applicable | U8: RPI*MYR*BKRB | V8: Malaysia | W8: Unlisted | Y8: Placements of Deposits | Z8: 0
A9: CSH | B9: RPI*MYR*BKRB | C9: Not Applicable | D9: 442 | E9: 442000 | F9: 442000 | G9: 442354.21 | H9: 442354.21 | I9: N/A | J9: 41477 | K9: Malaysia | L9: Bank Rakyat Berhad | M9: N/A | O9: 0 | Q9: 442 | S9: Not Applicable | U9: RPI*MYR*BKRB | V9: Malaysia | W9: Unlisted | Y9: Placements of Deposits | Z9: 0
A10: CSH | B10: RPC*MYR*RHBINV | C10: FD | D10: 534 | E10: 534000 | F10: 534000 | G10: 534215.79 | H10: 534215.79 | I10: LAFD | J10: 41396 | K10: Malaysia | L10: RHB Inv Bank | M10: RHB | O10: 0 | Q10: 534 | S10: FD | U10: RPC*MYR*RHBINV | V10: Malaysia | W10: Unlisted | Y10: Placements of Deposits | Z10: 0
A11: CSH | B11: RPC*MYR*KAF | C11: FD | D11: 1666 | E11: 1666000 | F11: 1666000 | G11: 1666273.86 | H11: 1666273.86 | I11: LAFD | J11: 41397 | K11: Malaysia | L11: KAF INV BANK | M11: N/A | O11: 0 | Q11: 1666 | S11: FD | U11: RPC*MYR*KAF | V11: Malaysia | W11: Unlisted | Y11: Placements of Deposits | Z11: 0
A12: CSH | B12: RPC*MYR*KAF | C12: FD | D12: 1208 | E12: 1208000 | F12: 1208000 | G12: 1208100.94 | H12: 1208100.94 | I12: LAFD | J12: 41400 | K12: Malaysia | L12: KAF INV BANK | M12: N/A | O12: 0 | Q12: 1208 | S12: FD | U12: RPC*MYR*KAF | V12: Malaysia | W12: Unlisted | Y12: Placements of Deposits | Z12: 0
A13: EQT | B13: 1023 | C13: CIMB GROUP HOLDINGS BHD | D13: 720 | E13: 5655175.37 | F13: 5655175.37 | G13: 5572800 | H13: 5572800 | I13: LSS | J13: 401774 | K13: Malaysia | L13: CIMB Holdings Berhad | M13: COMMERZ | O13: 8336525.886 | Q13: 5573 | S13: Shares | T13: Ordinary | U13: CIMB | V13: Malaysia | W13: Listed | Y13: Equity | Z13: 0.008636691229
A14: EQT | B14: 1066 | C14: RHB CAPITAL BHD | D14: 435 | E14: 3644670.68 | F14: 3644670.68 | G14: 3688800 | H14: 3688800 | I14: LSS | J14: 401790 | K14: Malaysia | L14: Rhb Capital Berhad | M14: RHB | O14: 2546904.762 | Q14: 3689 | S14: Shares | T14: Ordinary | U14: RHBCAP | V14: Malaysia | W14: Listed | Y14: Equity | Z14: 0.01707955502
A15: EQT | B15: 1155 | C15: MALAYAN BANKING BHD | D15: 170 | E15: 1537802.73 | F15: 1537802.73 | G15: 1635400 | H15: 1635400 | I15: LSS | J15: 401773 | K15: Malaysia | L15: Malayan Banking Berhad | M15: MAYBANK | O15: 8869989.899 | Q15: 1635 | S15: Shares | T15: Ordinary | U15: MAYBANK | V15: Malaysia | W15: Listed | Y15: Equity | Z15: 0.0019165749
A16: EQT | B16: 1651 | C16: MALAYSIAN RESOURCES CORPORATION BHD | D16: 314 | E16: 719522.38 | F16: 719522.38 | G16: 442740 | H16: 442740 | I16: LSS | J16: 401771 | K16: Malaysia | L16: M'sian Resources Corporation Bhd | M16: MRCB | O16: 1651312.5 | Q16: 443 | S16: Shares | T16: Ordinary | U16: MRCB | V16: Malaysia | W16: Listed | Y16: Equity | Z16: 0.01901517732
A17: EQT | B17: 1818 | C17: BURSA MALAYSIA BHD | D17: 600 | E17: 5701926.85 | F17: 5701926.85 | G17: 4290000 | H17: 4290000 | I17: LSS | J17: 401775 | K17: Malaysia | L17: Bursa Malaysia Berhad | M17: Bursa Malaysia | O17: 532864.5833 | Q17: 4290 | S17: Shares | T17: Ordinary | U17: BURSA | V17: Malaysia | W17: Listed | Y17: Equity | Z17: 0.1125989639
A18: EQT | B18: 1961 | C18: IOI CORPORATION BHD | D18: 835 | E18: 4844642.5 | F18: 4844642.5 | G18: 4200050 | H18: 4200050 | I18: LSS | J18: 401779 | K18: Malaysia | L18: IOI Corporation Berhad | M18: IOI | O18: 6448498.986 | Q18: 4200 | S18: Shares | T18: Ordinary | U18: IOICORP | V18: Malaysia | W18: Listed | Y18: Equity | Z18: 0.01294874981
A19: EQT | B19: 2003 | C19: KULIM (M) BHD | D19: 470 | E19: 2240009.27 | F19: 2240009.27 | G19: 1682600 | H19: 1682600 | I19: LSS | J19: 401796 | K19: Malaysia | L19: Kulim (Malaysia) Berhad | M19: Kulim Berhad | O19: 1294228.571 | Q19: 1683 | S19: Shares | T19: Ordinary | U19: KULIM | V19: Malaysia | W19: Listed | Y19: Equity | Z19: 0.0363150691
A20: EQT | B20: 2445 | C20: KUALA LUMPUR KEPONG BHD | D20: 20 | E20: 434075.57 | F20: 434075.57 | G20: 431200 | H20: 431200 | I20: LSS | J20: 401778 | K20: Malaysia | L20: Kl Kepong Berhad | M20: BK | O20: 1067504.181 | Q20: 431 | S20: Shares | T20: Ordinary | U20: KLK | V20: Malaysia | W20: Listed | Y20: Equity | Z20: 0.001873528963
A21: EQT | B21: 2771 | C21: BOUSTEAD HOLDINGS BHD | D21: 180 | E21: 977881.52 | F21: 977881.52 | G21: 921600 | H21: 921600 | I21: LSS | J21: 401801 | K21: Malaysia | L21: Boustead Holdings Bhd | M21: Boustead | O21: 1034003.559 | Q21: 922 | S21: Shares | T21: Ordinary | U21: BSTEAD | V21: Malaysia | W21: Listed | Y21: Equity | Z21: 0.01740806388
A22: EQT | B22: 3336 | C22: IJM CORPORATION BHD | D22: 300 | E22: 1735554.65 | F22: 1735554.65 | G22: 1635000 | H22: 1635000 | I22: LSS | J22: 401772 | K22: Malaysia | L22: IJM Corporation Berhad | M22: IJM | O22: 1419618.718 | Q22: 1635 | S22: Shares | T22: Ordinary | U22: IJM | V22: Malaysia | W22: Listed | Y22: Equity | Z22: 0.02113243481
A23: EQT | B23: 3662 | C23: MALAYAN FLOUR MILLS BHD | D23: 2064 | E23: 3836519.98 | F23: 3836519.98 | G23: 2641920 | H23: 2641920 | I23: LSS | J23: 401797 | K23: Malaysia | L23: Malayan Flour Mills Bhd | M23: N/A | O23: 538193.5484 | Q23: 2642 | S23: Shares | T23: Ordinary | U23: MFLOUR | V23: Malaysia | W23: Listed | Y23: Equity | Z23: 0.3835051546
A24: EQT | B24: 3719 | C24: PANASONIC MANUFACTURING MALAYSIA BHD | D24: 30 | E24: 612294.13 | F24: 612294.13 | G24: 670200 | H24: 670200 | I24: LSS | J24: 401799 | K24: Malaysia | L24: Panasonic Manufacturing Malaysia Bhd | M24: N/A | O24: 60745.14991 | Q24: 670 | S24: Shares | T24: Ordinary | U24: PANAMY | V24: Malaysia | W24: Listed | Y24: Equity | Z24: 0.04938665893
A25: EQT | B25: 3816 | C25: MISC BHD | D25: 1096.6 | E25: 4861585.22 | F25: 4861585.22 | G25: 4781176 | H25: 4781176 | I25: LSS | J25: 401769 | K25: Malaysia | L25: MISC BHD | M25: PETRONAS | O25: 4463786.408 | Q25: 4781 | S25: Shares | T25: Ordinary | U25: MISC | V25: Malaysia | W25: Listed | Y25: Equity | Z25: 0.02456658764
A26: EQT | B26: 4006 | C26: ORIENTAL HOLDINGS BHD | D26: 105.9 | E26: 797052.8 | F26: 797052.8 | G26: 1035702 | H26: 1035702 | I26: LSS | J26: 401805 | K26: Malaysia | L26: Oriental Holdings Bhd | M26: N/A | O26: 620396.927 | Q26: 1036 | S26: Shares | T26: Ordinary | U26: ORIENT | V26: Malaysia | W26: Listed | Y26: Equity | Z26: 0.01706971705
A27: EQT | B27: 4162 | C27: BRITISH AMERICAN TOBACCO (M) BHD | D27: 22 | E27: 1294858.31 | F27: 1294858.31 | G27: 1393040 | H27: 1393040 | I27: LSS | J27: 401807 | K27: Malaysia | L27: British American Tobacco (Malaysia) Bhd | M27: British American Tobacco | O27: 285529.4118 | Q27: 1393 | S27: Shares | T27: Ordinary | U27: BAT | V27: Malaysia | W27: Listed | Y27: Equity | Z27: 0.007704985579
A28: EQT | B28: 4197 | C28: SIME DARBY BHD | D28: 170 | E28: 1571939.18 | F28: 1571939.18 | G28: 1604800 | H28: 1604800 | I28: LSS | J28: 401783 | K28: Malaysia | L28: Sime Darby Bhd | M28: SIME DARBY | O28: 6064104.712 | Q28: 1605 | S28: Shares | T28: Ordinary | U28: SIME | V28: Malaysia | W28: Listed | Y28: Equity | Z28: 0.002803381671
A29: EQT | B29: 4863 | C29: TELEKOM MALAYSIA BHD | D29: 950 | E29: 5544373.87 | F29: 5544373.87 | G29: 5244000 | H29: 5244000 | I29: LSS | J29: 401781 | K29: Malaysia | L29: Telekom Malaysia Berhad | M29: Telekom Malaysia | O29: 3577394.822 | Q29: 5244 | S29: Shares | T29: Ordinary | U29: TELEKOM | V29: Malaysia | W29: Listed | Y29: Equity | Z29: 0.02655563748
A30: EQT | B30: 5012 | C30: TA ANN HOLDINGS BHD | D30: 276 | E30: 1340756.35 | F30: 1340756.35 | G30: 963240 | H30: 963240 | I30: LSS | J30: 401800 | K30: Malaysia | L30: Ta Ann Holdings Berhad | M30: N/A | O30: 370745.9207 | Q30: 963 | S30: Shares | T30: Ordinary | U30: TAANN | V30: Malaysia | W30: Listed | Y30: Equity | Z30: 0.0744445143
A31: EQT | B31: 5112 | C31: TH PLANTATIONS BHD | D31: 550 | E31: 1422438.16 | F31: 1422438.16 | G31: 1204500 | H31: 1204500 | I31: LSS | J31: 401798 | K31: Malaysia | L31: TH Plantation Berhad | M31: Lembaga Tabung Haji | O31: 883000 | Q31: 1205 | S31: Shares | T31: Ordinary | U31: THPLANT | V31: Malaysia | W31: Listed | Y31: Equity | Z31: 0.06228765572
A32: EQT | B32: 5166 | C32: Masterskill Education Group Bhd | D32: 530 | E32: 2034140 | F32: 2034140 | G32: 307400 | H32: 307400 | I32: N/A | J32: 401785 | K32: Malaysia | L32: Masterskill Education Group Bhd | M32: Masterskill Education Group Bhd | O32: 409866.6667 | Q32: 307 | S32: Not Applicable | T32: Ordinary | U32: MEGB | V32: Malaysia | W32: Unlisted | Y32: Equity | Z32: 0.1293103448
A33: EQT | B33: 5183 | C33: PETRONAS CHEMICALS GROUP BHD | D33: 1071.7 | E33: 7242086.3 | F33: 7242086.3 | G33: 6998201 | H33: 6998201 | I33: LSS | J33: 401789 | K33: Malaysia | L33: Petronas Chemical Group Bhd | M33: PETRONAS | O33: 8000000 | Q33: 6998 | S33: Shares | T33: Ordinary | U33: PCHEM | V33: Malaysia | W33: Unlisted | Y33: Equity | Z33: 0.01339625
A34: EQT | B34: 5186 | C34: MALAYSIA MARINE AND HEAVY ENGINEERING HOLDINGS BHD | D34: 893 | E34: 5128188.49 | F34: 5128188.49 | G34: 3402330 | H34: 3402330 | I34: LSS | J34: 401795 | K34: Malaysia | L34: Malaysia Marine And Heavy Engineering Holdings Bhd | M34: PETRONAS | O34: 1600000 | Q34: 3402 | S34: Shares | T34: Ordinary | U34: MHB | V34: Malaysia | W34: Listed | Y34: Equity | Z34: 0.0558125
A35: EQT | B35: 5209 | C35: GAS MALAYSIA BHD | D35: 279.2 | E35: 840001.48 | F35: 840001.48 | G35: 812472 | H35: 812472 | I35: N/A | J35: 401769 | K35: Malaysia | L35: GAS MALAYSIA BHD | M35: N/A | O35: 1283988.92 | Q35: 812 | S35: Not Applicable | T35: Ordinary | U35: GASMSIA | V35: Malaysia | W35: Listed | Y35: Equity | Z35: 0.02174473593
A36: EQT | B36: 5215 | C36: IJM LAND BHD | D36: 400 | E36: 1164907.17 | F36: 1164907.17 | G36: 1032000 | H36: 1032000 | I36: LSS | J36: 401792 | K36: Malaysia | L36: RB Land Holdings Bhd | M36: IJM | O36: 1408045.653 | Q36: 1032 | S36: Shares | T36: Ordinary | U36: IJM LAND | V36: Malaysia | W36: Listed | Y36: Equity | Z36: 0.0284081698
A37: EQT | B37: 5218 | C37: SAPURAKENCANA PETROLEUM BHD | D37: 860 | E37: 2604387.51 | F37: 2604387.51 | G37: 2734800 | H37: 2734800 | I37: N/A | J37: 401802 | K37: Malaysia | L37: SAPURAKENCANA PETROLEUM BHD | M37: N/A | O37: 5992158.273 | Q37: 2735 | S37: Not Applicable | T37: Ordinary | U37: SKPETRO | V37: Malaysia | W37: Listed | Y37: Equity | Z37: 0.01435209086
A38: EQT | B38: 5258 | C38: BIMB HOLDINGS BHD | D38: 173.8 | E38: 533755.56 | F38: 533755.56 | G38: 610038 | H38: 610038 | I38: LSS | J38: 401806 | K38: Malaysia | L38: Bank Islam Malaysia Bhd | M38: Bank Islam Berhad | O38: 1493502.538 | Q38: 610 | S38: Shares | T38: Ordinary | U38: BIMB | V38: Malaysia | W38: Listed | Y38: Equity | Z38: 0.0116370743
A39: EQT | B39: 5347 | C39: TENAGA NASIONAL BHD | D39: 1044.3 | E39: 8191734.24 | F39: 8191734.24 | G39: 8197755 | H39: 8197755 | I39: LSS | J39: 401782 | K39: Malaysia | L39: Tenaga Nasional Berhad | M39: TENAGA | O39: 5643610.169 | Q39: 8198 | S39: Shares | T39: Ordinary | U39: TENAGA | V39: Malaysia | W39: Listed | Y39: Equity | Z39: 0.01850411295
A40: EQT | B40: 5703 | C40: MUHIBBAH ENGINEERING (M) BHD | D40: 838 | E40: 1140480.55 | F40: 1140480.55 | G40: 938560 | H40: 938560 | I40: LSS | J40: 401787 | K40: Malaysia | L40: Muhibbah Engineering (M) Bhd | M40: N/A | O40: 409020.979 | Q40: 939 | S40: Shares | T40: Ordinary | U40: MUHIBAH | V40: Malaysia | W40: Listed | Y40: Equity | Z40: 0.2048794666
A41: EQT | B41: 6012 | C41: MAXIS BHD | D41: 425.3 | E41: 2755588.54 | F41: 2755588.54 | G41: 2875028 | H41: 2875028 | I41: LSS | J41: 401784 | K41: Malaysia | L41: MAXIS BHD | M41: MAXIS | O41: 7502998.624 | Q41: 2875 | S41: Shares | T41: Ordinary | U41: MAXIS | V41: Malaysia | W41: Listed | Y41: Equity | Z41: 0.005668400346
A42: EQT | B42: 6033 | C42: PETRONAS GAS BHD | D42: 6.7 | E42: 123230.81 | F42: 123230.81 | G42: 132124 | H42: 132124 | I42: LSS | J42: 401791 | K42: Malaysia | L42: Petronas Gas Berhad | M42: PETRONAS | O42: 1978730.612 | Q42: 132 | S42: Shares | T42: Ordinary | U42: PETGAS | V42: Malaysia | W42: Listed | Y42: Equity | Z42: 0.0003386009171
A43: EQT | B43: 6742 | C43: YTL POWER INTERNATIONAL BHD | D43: 300 | E43: 744813.68 | F43: 744813.68 | G43: 453000 | H43: 453000 | I43: LSS | J43: 401788 | K43: Malaysia | L43: YTL Power International Berhad | M43: YTL & SONS | O43: 7176082.474 | Q43: 453 | S43: Shares | T43: Ordinary | U43: YTLPOWR | V43: Malaysia | W43: Listed | Y43: Equity | Z43: 0.004180553959
A44: EQT | B44: 6807 | C44: PUNCAK NIAGA HOLDINGS BHD | D44: 120 | E44: 470780.08 | F44: 470780.08 | G44: 205200 | H44: 205200 | I44: LSS | J44: 401777 | K44: Malaysia | L44: Puncak Niaga Holdings Berhad | M44: PUNCAK | O44: 411270.903 | Q44: 205 | S44: Shares | T44: Ordinary | U44: PUNCAK | V44: Malaysia | W44: Listed | Y44: Equity | Z44: 0.02917784826
A45: EQT | B45: 6888 | C45: AXIATA GROUP BERHAD | D45: 150 | E45: 962408 | F45: 962408 | G45: 1015500 | H45: 1015500 | I45: LSS | J45: 401769 | K45: Malaysia | L45: AXIATA GROUP BERHAD | M45: AXIATA GROUP | O45: 8561298.701 | Q45: 1016 | S45: Shares | T45: Ordinary | U45: AXIATA | V45: Malaysia | W45: Listed | Y45: Equity | Z45: 0.001752070629
A46: EQT | B46: 6947 | C46: DIGI.COM BHD | D46: 950 | E46: 4764780.32 | F46: 4764780.32 | G46: 4408000 | H46: 4408000 | I46: LSS | J46: 401793 | K46: Malaysia | L46: Digi.Com Berhad | M46: Digi | O46: 7775000 | Q46: 4408 | S46: Shares | T46: Ordinary | U46: DIGI | V46: Malaysia | W46: Listed | Y46: Equity | Z46: 0.01221864952
A47: EQT | B47: 7076 | C47: CB INDUSTRIAL PRODUCT HOLDING BHD | D47: 432.8 | E47: 1146063.12 | F47: 1146063.12 | G47: 1082000 | H47: 1082000 | I47: LSS | J47: 401803 | K47: Malaysia | L47: CB Industrial Product Holding Berhad | M47: CBIP | O47: 272012.012 | Q47: 1082 | S47: Shares | T47: Ordinary | U47: CBIP | V47: Malaysia | W47: Listed | Y47: Equity | Z47: 0.1591106204
A48: EQT | B48: 7108 | C48: PERDANA PETROLEUM BHD | D48: 1300 | E48: 2785470.45 | F48: 2785470.45 | G48: 1911000 | H48: 1911000 | I48: LSS | J48: 401794 | K48: Malaysia | L48: Petra Perdana Berhad | M48: PETRA | O48: 731445.7831 | Q48: 1911 | S48: Shares | T48: Ordinary | U48: PERDANA | V48: Malaysia | W48: Listed | Y48: Equity | Z48: 0.1777301927
A49: EQT | B49: 7164 | C49: KNM GROUP BHD | D49: 140.625 | E49: 1123132.15 | F49: 1123132.15 | G49: 60468.75 | H49: 60468.75 | I49: LSS | J49: 401776 | K49: Malaysia | L49: KNM Group Bhd | M49: KNM | O49: 1636644.295 | Q49: 60 | S49: Shares | T49: Ordinary | U49: KNM | V49: Malaysia | W49: Listed | Y49: Equity | Z49: 0.008592276306
A50: EQT | B50: 7277 | C50: DIALOG GROUP BHD | D50: 400 | E50: 956474.2 | F50: 956474.2 | G50: 948000 | H50: 948000 | I50: LSS | J50: 401769 | K50: Malaysia | L50: Dialog Group Bhd | M50: N/A | O50: 2439054.545 | Q50: 948 | S50: Shares | T50: Ordinary | U50: DIALOG | V50: Malaysia | W50: Listed | Y50: Equity | Z50: 0.01639979724
A51: EQT | B51: 8664 | C51: SP SETIA BHD | D51: 469 | E51: 1467338.94 | F51: 1467338.94 | G51: 1608670 | H51: 1608670 | I51: LSS | J51: 401780 | K51: Malaysia | L51: S P Setia Berhad | M51: SPSETIA | O51: 2517431.507 | Q51: 1609 | S51: Shares | T51: Ordinary | U51: SPSETIA | V51: Malaysia | W51: Listed | Y51: Equity | Z51: 0.01863009972
A52: EQT | B52: 9679 | C52: WCT BHD | D52: 1046.5 | E52: 2905401.26 | F52: 2905401.26 | G52: 2511600 | H52: 2511600 | I52: LSS | J52: 401786 | K52: Malaysia | L52: Wct Engineering Berhad | M52: WCT | O52: 1092500 | Q52: 2512 | S52: Shares | T52: Ordinary | U52: WCT | V52: Malaysia | W52: Listed | Y52: Equity | Z52: 0.09578947368

Sheet InTran (hidden)
A1: CPName | B1: qTrnCode | C1: SCNetProceed

Sheet InPricing (hidden)
A2: qValDate | B2: NAV | C2: BuyPrice | D2: SellPrice | E2: ValPrice | F2: TotalUnits
A3: 2013-03-29 | B3: 99105757.7 | C3: 0.3522 | D3: 0.3522 | E3: 0.35218819 | F3: 281400000
A4: 2013-04-30 | B4: 100528690.3 | C4: 0.358 | D4: 0.358 | E4: 0.35800816 | F4: 280800000
A5: 2013-05-31 | B5: 106006181.8 | C5: 0.3789 | D5: 0.3789 | E5: 0.37886412 | F5: 279800000
A6: 2013-06-28 | B6: 105636175.5 | C6: 0.3775 | D6: 0.3775 | E6: 0.37754173 | F6: 279800000
A7: 2013-07-31 | B7: 106498011.2 | C7: 0.3829 | D7: 0.3829 | E7: 0.38294862 | F7: 278100000
A8: 2013-08-30 | B8: 103170547 | C8: 0.3703 | D8: 0.3703 | E8: 0.37031783 | F8: 278600000
A9: 2013-09-30 | B9: 105486695.7 | C9: 0.3796 | D9: 0.3796 | E9: 0.37958509 | F9: 277900000
A10: 2013-10-31 | B10: 106613639.6 | C10: 0.386 | D10: 0.386 | E10: 0.38600159 | F10: 276200000
A11: 2013-11-29 | B11: 106891255.5 | C11: 0.3877 | D11: 0.3877 | E11: 0.38770858 | F11: 275700000
A12: 2013-12-31 | B12: 101662286.8 | C12: 0.3702 | D12: 0.3702 | E12: 0.37021954 | F12: 274600000
A13: 2014-01-30 | B13: 99804725.53 | C13: 0.3626 | D13: 0.3626 | E13: 0.36259664 | F13: 275250000
A14: 2014-02-28 | B14: 105138973.5 | C14: 0.3689 | D14: 0.3689 | E14: 0.36890868 | F14: 285000000
A15: 2014-03-31 | B15: 105715325.7 | C15: 0.3722 | D15: 0.3722 | E15: 0.37223706 | F15: 284000000
A16: 2014-04-30 | B16: 106963782.8 | C16: 0.3786 | D16: 0.3786 | E16: 0.37863286 | F16: 282500000
A17: 2014-05-30 | B17: 105988233.9 | C17: 0.3765 | D17: 0.3765 | E17: 0.37651238 | F17: 281500000
A18: 2014-06-16 | B18: 0 | C18: 0 | D18: 0 | E18: 0 | F18: 0

Sheet InIndex (hidden)
A2: ValueDate | B2: qIndexBenchMark | C2: Indices
A3: 2011-05-31 | B3: KLCI | C3: 1558.29
A4: 2011-06-30 | B4: KLCI | C4: 1579.07
A5: 2011-07-31 | B5: KLCI | C5: 1548.81
A6: 2011-08-31 | B6: KLCI | C6: 1447.27
A7: 2011-09-30 | B7: KLCI | C7: 1387.13
A8: 2011-10-31 | B8: KLCI | C8: 1491.89
A9: 2011-11-30 | B9: KLCI | C9: 1472.1
A10: 2011-12-31 | B10: KLCI | C10: 1530.73
A11: 2012-01-31 | B11: KLCI | C11: 1521.29
A12: 2012-02-29 | B12: KLCI | C12: 1569.65
A13: 2012-03-31 | B13: KLCI | C13: 1596.33
A14: 2012-04-30 | B14: KLCI | C14: 1570.61
A15: 2012-05-31 | B15: KLCI | C15: 1580.67
A16: 2012-06-30 | B16: KLCI | C16: 1599.15
A17: 2012-07-17 | B17: KLCI | C17: 1639.15

Sheet InTWRR (hidden)
A2: qFundCode | B2: ValueDate | C2: LastValueDate | D2: NAV | E2: LVNav | F2: TWRR
A3: HLGTSSF | B3: 40724 | C3: 40723 | D3: 1284497.43 | E3: 1277148.17 | F3: 0.005733829595

Sheet InFund (hidden)
A2: qFundCode | B2: FundName | C2: FinanceYrStart | D2: FinanceYrEnd | E2: qIndexBenchMark | F2: FundCurrency | G2: FundPrefix | H2: CPName
A3: ASBSN | B3: Amanah Saham BSN | C3: 1994-12-31 | D3: 2013-12-31 | E3: GIS60GIM | F3: MYR | G3: ASBSN | H3: AMANAHRAYA TRUSTEES BERHAD
A4: i-CASH | B4: CASH | C4: 2013-06-21 | D4: 2013-12-31 | E4: OPR | F4: MYR | G4: iCASH | H4: AMANAHRAYA TRUSTEES BERHAD
A5: IFRAH | B5: Ifrah | C5: 2012-02-09 | D5: 2013-12-31 | E5: GIS60GIM | F5: MYR | G5: IFRAH | H5: AMANAHRAYA TRUSTEES BERHAD
A6: JADID | B6: Jadid | C6: 2008-06-18 | D6: 2013-12-31 | E6: GIS60GIM | F6: MYR | G6: JADID | H6: AMANAHRAYA TRUSTEES BERHAD
